FIN.POSTING DATE,AMOUNT,MERCHANT CATEGORY,SUMMARY OF PURPOSE,LOCAL AUTHORITY DEPARTMENT,BENEFICIARY,VALUE ADDED TAX THAT CANNOT BE RECOVERED
16/01/17,15.00 ,Travel - Air/Rail/Road,PASSENGER RAILWAYS,ADULT SERVICES,OYSTER ISSUE WEB,Not applicable
16/01/17,15.00 ,Travel - Air/Rail/Road,PASSENGER RAILWAYS,ADULT SERVICES,OYSTER ISSUE WEB,Not applicable
16/01/17,15.00 ,Travel - Air/Rail/Road,PASSENGER RAILWAYS,ADULT SERVICES,OYSTER ISSUE WEB,Not applicable
16/01/17,15.00 ,Travel - Air/Rail/Road,PASSENGER RAILWAYS,ADULT SERVICES,OYSTER ISSUE WEB,Not applicable
16/01/17,15.00 ,Travel - Air/Rail/Road,PASSENGER RAILWAYS,ADULT SERVICES,OYSTER ISSUE WEB,Not applicable
16/01/17,15.00 ,Travel - Air/Rail/Road,PASSENGER RAILWAYS,ADULT SERVICES,OYSTER ISSUE WEB,Not applicable
16/01/17,15.00 ,Travel - Air/Rail/Road,PASSENGER RAILWAYS,ADULT SERVICES,OYSTER ISSUE WEB,Not applicable
16/01/17,15.00 ,Travel - Air/Rail/Road,PASSENGER RAILWAYS,ADULT SERVICES,OYSTER ISSUE WEB,Not applicable
16/01/17,15.00 ,Travel - Air/Rail/Road,PASSENGER RAILWAYS,ADULT SERVICES,OYSTER ISSUE WEB,Not applicable
16/01/17,15.00 ,Travel - Air/Rail/Road,PASSENGER RAILWAYS,ADULT SERVICES,OYSTER ISSUE WEB,Not applicable
16/01/17,15.00 ,Travel - Air/Rail/Road,PASSENGER RAILWAYS,ADULT SERVICES,OYSTER ISSUE WEB,Not applicable
16/01/17,15.00 ,Travel - Air/Rail/Road,PASSENGER RAILWAYS,ADULT SERVICES,OYSTER ISSUE WEB,Not applicable
16/01/17,15.00 ,Travel - Air/Rail/Road,PASSENGER RAILWAYS,ADULT SERVICES,OYSTER ISSUE WEB,Not applicable
16/01/17,15.00 ,Travel - Air/Rail/Road,PASSENGER RAILWAYS,ADULT SERVICES,OYSTER ISSUE WEB,Not applicable
19/01/17,25.00 ,Travel - Air/Rail/Road,PASSENGER RAILWAYS,ADULT SERVICES,OYSTER RENEW WEB,Not applicable
19/01/17,25.00 ,Travel - Air/Rail/Road,PASSENGER RAILWAYS,ADULT SERVICES,OYSTER RENEW WEB,Not applicable
19/01/17,30.00 ,Travel - Air/Rail/Road,PASSENGER RAILWAYS,ADULT SERVICES,OYSTER RENEW WEB,Not applicable
19/01/17,30.00 ,Travel - Air/Rail/Road,PASSENGER RAILWAYS,ADULT SERVICES,OYSTER RENEW WEB,Not applicable
24/01/17,35.00 ,Travel - Air/Rail/Road,PASSENGER RAILWAYS,ADULT SERVICES,OYSTER RENEW WEB,Not applicable
24/01/17,35.00 ,Travel - Air/Rail/Road,PASSENGER RAILWAYS,ADULT SERVICES,OYSTER RENEW WEB,Not applicable
24/01/17,35.00 ,Travel - Air/Rail/Road,PASSENGER RAILWAYS,ADULT SERVICES,OYSTER RENEW WEB,Not applicable
24/01/17,35.00 ,Travel - Air/Rail/Road,PASSENGER RAILWAYS,ADULT SERVICES,OYSTER RENEW WEB,Not applicable
24/01/17,35.00 ,Travel - Air/Rail/Road,PASSENGER RAILWAYS,ADULT SERVICES,OYSTER RENEW WEB,Not applicable
24/01/17,35.00 ,Travel - Air/Rail/Road,PASSENGER RAILWAYS,ADULT SERVICES,OYSTER RENEW WEB,Not applicable
24/01/17,35.00 ,Travel - Air/Rail/Road,PASSENGER RAILWAYS,ADULT SERVICES,OYSTER RENEW WEB,Not applicable
24/01/17,35.00 ,Travel - Air/Rail/Road,PASSENGER RAILWAYS,ADULT SERVICES,OYSTER RENEW WEB,Not applicable
24/01/17,35.00 ,Travel - Air/Rail/Road,PASSENGER RAILWAYS,ADULT SERVICES,OYSTER RENEW WEB,Not applicable
24/01/17,35.00 ,Travel - Air/Rail/Road,PASSENGER RAILWAYS,ADULT SERVICES,OYSTER RENEW WEB,Not applicable
13/02/17,20.00 ,Travel - Air/Rail/Road,PASSENGER RAILWAYS,ADULT SERVICES,OYSTER AUTOTOPUP,Not applicable
24/02/17,20.00 ,Travel - Air/Rail/Road,PASSENGER RAILWAYS,ADULT SERVICES,OYSTER AUTOTOPUP,Not applicable
27/02/17,15.00 ,Travel - Air/Rail/Road,PASSENGER RAILWAYS,ADULT SERVICES,OYSTER ISSUE WEB,Not applicable
02/03/17,20.00 ,Travel - Air/Rail/Road,PASSENGER RAILWAYS,ADULT SERVICES,OYSTER RENEW WEB,Not applicable
09/03/17,15.00 ,Travel - Air/Rail/Road,PASSENGER RAILWAYS,ADULT SERVICES,OYSTER ISSUE WEB,Not applicable
09/03/17,20.00 ,Travel - Air/Rail/Road,PASSENGER RAILWAYS,ADULT SERVICES,OYSTER AUTOTOPUP,Not applicable
10/03/17,20.00 ,Travel - Air/Rail/Road,PASSENGER RAILWAYS,ADULT SERVICES,OYSTER AUTOTOPUP,Not applicable
15/03/17,15.00 ,Travel - Air/Rail/Road,PASSENGER RAILWAYS,ADULT SERVICES,OYSTER ISSUE WEB,Not applicable
15/03/17,15.00 ,Travel - Air/Rail/Road,PASSENGER RAILWAYS,ADULT SERVICES,OYSTER ISSUE WEB,Not applicable
15/03/17,15.00 ,Travel - Air/Rail/Road,PASSENGER RAILWAYS,ADULT SERVICES,OYSTER ISSUE WEB,Not applicable
15/03/17,15.00 ,Travel - Air/Rail/Road,PASSENGER RAILWAYS,ADULT SERVICES,OYSTER ISSUE WEB,Not applicable
20/03/17,20.00 ,Travel - Air/Rail/Road,PASSENGER RAILWAYS,ADULT SERVICES,OYSTER AUTOTOPUP,Not applicable
22/03/17,10.00 ,Travel - Air/Rail/Road,PASSENGER RAILWAYS,ADULT SERVICES,OYSTER RENEW WEB,Not applicable
22/03/17,10.00 ,Travel - Air/Rail/Road,PASSENGER RAILWAYS,ADULT SERVICES,OYSTER RENEW WEB,Not applicable
22/03/17,10.00 ,Travel - Air/Rail/Road,PASSENGER RAILWAYS,ADULT SERVICES,OYSTER RENEW WEB,Not applicable
22/03/17,10.00 ,Travel - Air/Rail/Road,PASSENGER RAILWAYS,ADULT SERVICES,OYSTER RENEW WEB,Not applicable
28/03/17,20.00 ,Travel - Air/Rail/Road,PASSENGER RAILWAYS,ADULT SERVICES,OYSTER AUTOTOPUP,Not applicable
02/01/17,20.00 ,Travel - Air/Rail/Road,PASSENGER RAILWAYS,CEG,OYSTER BUS AUTOTOP,Not applicable
02/01/17,20.00 ,Travel - Air/Rail/Road,PASSENGER RAILWAYS,CEG,OYSTER AUTOTOPUP,Not applicable
02/01/17,20.00 ,Travel - Air/Rail/Road,PASSENGER RAILWAYS,CEG,OYSTER AUTOTOPUP,Not applicable
05/01/17,10.50 ,Travel - Air/Rail/Road,"BRIDGE AND ROAD FEES, TOLLS",CEG,TFL CC AUTO PAY,Not applicable
06/01/17,99.95 ,Books and Periodicals,BOOK STORES,CEG,HAMMICKS LEGAL BOOKSHO,Not applicable
09/01/17,11.23 ,Books and Periodicals,BOOK STORES,CEG,AMAZON UK MARKETPLACE,Not applicable
09/01/17,20.00 ,Travel - Air/Rail/Road,PASSENGER RAILWAYS,CEG,OYSTER BUS AUTOTOP,Not applicable
09/01/17,4.60 ,Mail Order / Direct Selling,DIRECT MARKETING-OTHER DIRECT MARKETERS/NOT ELSEW.,CEG,AMAZON EU,Not applicable
09/01/17,20.00 ,Travel - Air/Rail/Road,PASSENGER RAILWAYS,CEG,OYSTER BUS AUTOTOP,Not applicable
09/01/17,14.25 ,Books and Periodicals,BOOK STORES,CEG,AMAZON UK MARKETPLACE,Not applicable
09/01/17,3.17 ,Books and Periodicals,BOOK STORES,CEG,AMAZON UK MARKETPLACE,Not applicable
10/01/17,2.25 ,General Retail and Wholesale,"GROCERY STORES, SUPERMARKETS",CEG,SAINSBURYS SACAT 0069,Not applicable
10/01/17,7.37 ,Books and Periodicals,BOOK STORES,CEG,AMAZON UK MARKETPLACE,Not applicable
10/01/17,1.85 ,Books and Periodicals,BOOK STORES,CEG,AMAZON UK MARKETPLACE,Not applicable
12/01/17,20.00 ,Travel - Air/Rail/Road,PASSENGER RAILWAYS,CEG,OYSTER AUTOTOPUP,Not applicable
12/01/17,20.00 ,Travel - Air/Rail/Road,PASSENGER RAILWAYS,CEG,OYSTER AUTOTOPUP,Not applicable
13/01/17,4.88 ,Automotive Fuel,SERVICE STATIONS WITH OR WITHOUT ANCILLARY SERVICE,CEG,SHELL SAVOY 437,Not applicable
13/01/17,35.00 ,Statutory Bodies,GOVERNMENT SERVICES-NOT ELSEWHERE CLASSIFIED,CEG,WWW.ICO.GOV.UK,Not applicable
13/01/17,35.00 ,Statutory Bodies,GOVERNMENT SERVICES-NOT ELSEWHERE CLASSIFIED,CEG,WWW.ICO.GOV.UK,Not applicable
13/01/17,35.00 ,Statutory Bodies,GOVERNMENT SERVICES-NOT ELSEWHERE CLASSIFIED,CEG,WWW.ICO.GOV.UK,Not applicable
13/01/17,35.00 ,Statutory Bodies,GOVERNMENT SERVICES-NOT ELSEWHERE CLASSIFIED,CEG,WWW.ICO.GOV.UK,Not applicable
13/01/17,35.00 ,Statutory Bodies,GOVERNMENT SERVICES-NOT ELSEWHERE CLASSIFIED,CEG,WWW.ICO.GOV.UK,Not applicable
13/01/17,35.00 ,Statutory Bodies,GOVERNMENT SERVICES-NOT ELSEWHERE CLASSIFIED,CEG,WWW.ICO.GOV.UK,Not applicable
13/01/17,35.00 ,Statutory Bodies,GOVERNMENT SERVICES-NOT ELSEWHERE CLASSIFIED,CEG,WWW.ICO.GOV.UK,Not applicable
13/01/17,35.00 ,Statutory Bodies,GOVERNMENT SERVICES-NOT ELSEWHERE CLASSIFIED,CEG,WWW.ICO.GOV.UK,Not applicable
13/01/17,35.00 ,Statutory Bodies,GOVERNMENT SERVICES-NOT ELSEWHERE CLASSIFIED,CEG,WWW.ICO.GOV.UK,Not applicable
13/01/17,35.00 ,Statutory Bodies,GOVERNMENT SERVICES-NOT ELSEWHERE CLASSIFIED,CEG,WWW.ICO.GOV.UK,Not applicable
13/01/17,35.00 ,Statutory Bodies,GOVERNMENT SERVICES-NOT ELSEWHERE CLASSIFIED,CEG,WWW.ICO.GOV.UK,Not applicable
13/01/17,35.00 ,Statutory Bodies,GOVERNMENT SERVICES-NOT ELSEWHERE CLASSIFIED,CEG,WWW.ICO.GOV.UK,Not applicable
13/01/17,35.00 ,Statutory Bodies,GOVERNMENT SERVICES-NOT ELSEWHERE CLASSIFIED,CEG,WWW.ICO.GOV.UK,Not applicable
13/01/17,35.00 ,Statutory Bodies,GOVERNMENT SERVICES-NOT ELSEWHERE CLASSIFIED,CEG,WWW.ICO.GOV.UK,Not applicable
13/01/17,35.00 ,Statutory Bodies,GOVERNMENT SERVICES-NOT ELSEWHERE CLASSIFIED,CEG,WWW.ICO.GOV.UK,Not applicable
13/01/17,35.00 ,Statutory Bodies,GOVERNMENT SERVICES-NOT ELSEWHERE CLASSIFIED,CEG,WWW.ICO.GOV.UK,Not applicable
13/01/17,35.00 ,Statutory Bodies,GOVERNMENT SERVICES-NOT ELSEWHERE CLASSIFIED,CEG,WWW.ICO.GOV.UK,Not applicable
13/01/17,35.00 ,Statutory Bodies,GOVERNMENT SERVICES-NOT ELSEWHERE CLASSIFIED,CEG,WWW.ICO.GOV.UK,Not applicable
13/01/17,35.00 ,Statutory Bodies,GOVERNMENT SERVICES-NOT ELSEWHERE CLASSIFIED,CEG,WWW.ICO.GOV.UK,Not applicable
13/01/17,35.00 ,Statutory Bodies,GOVERNMENT SERVICES-NOT ELSEWHERE CLASSIFIED,CEG,WWW.ICO.GOV.UK,Not applicable
13/01/17,35.00 ,Statutory Bodies,GOVERNMENT SERVICES-NOT ELSEWHERE CLASSIFIED,CEG,WWW.ICO.GOV.UK,Not applicable
13/01/17,35.00 ,Statutory Bodies,GOVERNMENT SERVICES-NOT ELSEWHERE CLASSIFIED,CEG,WWW.ICO.GOV.UK,Not applicable
13/01/17,35.00 ,Statutory Bodies,GOVERNMENT SERVICES-NOT ELSEWHERE CLASSIFIED,CEG,WWW.ICO.GOV.UK,Not applicable
13/01/17,35.00 ,Statutory Bodies,GOVERNMENT SERVICES-NOT ELSEWHERE CLASSIFIED,CEG,WWW.ICO.GOV.UK,Not applicable
13/01/17,35.00 ,Statutory Bodies,GOVERNMENT SERVICES-NOT ELSEWHERE CLASSIFIED,CEG,WWW.ICO.GOV.UK,Not applicable
13/01/17,35.00 ,Statutory Bodies,GOVERNMENT SERVICES-NOT ELSEWHERE CLASSIFIED,CEG,WWW.ICO.GOV.UK,Not applicable
13/01/17,35.00 ,Statutory Bodies,GOVERNMENT SERVICES-NOT ELSEWHERE CLASSIFIED,CEG,WWW.ICO.GOV.UK,Not applicable
13/01/17,35.00 ,Statutory Bodies,GOVERNMENT SERVICES-NOT ELSEWHERE CLASSIFIED,CEG,WWW.ICO.GOV.UK,Not applicable
13/01/17,35.00 ,Statutory Bodies,GOVERNMENT SERVICES-NOT ELSEWHERE CLASSIFIED,CEG,WWW.ICO.GOV.UK,Not applicable
13/01/17,35.00 ,Statutory Bodies,GOVERNMENT SERVICES-NOT ELSEWHERE CLASSIFIED,CEG,WWW.ICO.GOV.UK,Not applicable
13/01/17,35.00 ,Statutory Bodies,GOVERNMENT SERVICES-NOT ELSEWHERE CLASSIFIED,CEG,WWW.ICO.GOV.UK,Not applicable
13/01/17,35.00 ,Statutory Bodies,GOVERNMENT SERVICES-NOT ELSEWHERE CLASSIFIED,CEG,WWW.ICO.GOV.UK,Not applicable
13/01/17,43.98 ,Books and Periodicals,BOOK STORES,CEG,AMAZON UK MARKETPLACE,Not applicable
13/01/17,9.45 ,Books and Periodicals,BOOK STORES,CEG,AMAZON UK MARKETPLACE,Not applicable
16/01/17,20.00 ,Travel - Air/Rail/Road,PASSENGER RAILWAYS,CEG,OYSTER BUS AUTOTOP,Not applicable
16/01/17,20.00 ,Travel - Air/Rail/Road,PASSENGER RAILWAYS,CEG,OYSTER AUTOTOPUP,Not applicable
17/01/17,57.00 ,Mail Order / Direct Selling,DIRECT MARKETING-OTHER DIRECT MARKETERS/NOT ELSEW.,CEG,AMAZON EU,Not applicable
18/01/17,35.00 ,Statutory Bodies,GOVERNMENT SERVICES-NOT ELSEWHERE CLASSIFIED,CEG,WWW.ICO.GOV.UK,Not applicable
18/01/17,500.00 ,Statutory Bodies,GOVERNMENT SERVICES-NOT ELSEWHERE CLASSIFIED,CEG,WWW.ICO.GOV.UK,Not applicable
18/01/17,35.00 ,Statutory Bodies,GOVERNMENT SERVICES-NOT ELSEWHERE CLASSIFIED,CEG,WWW.ICO.GOV.UK,Not applicable
18/01/17,35.00 ,Statutory Bodies,GOVERNMENT SERVICES-NOT ELSEWHERE CLASSIFIED,CEG,WWW.ICO.GOV.UK,Not applicable
18/01/17,35.00 ,Statutory Bodies,GOVERNMENT SERVICES-NOT ELSEWHERE CLASSIFIED,CEG,WWW.ICO.GOV.UK,Not applicable
18/01/17,35.00 ,Statutory Bodies,GOVERNMENT SERVICES-NOT ELSEWHERE CLASSIFIED,CEG,WWW.ICO.GOV.UK,Not applicable
19/01/17,390.00 ,General Retail and Wholesale,MISCELLANEOUS AND SPECIALTY RETAIL STORES,CEG,TESCO DIRECT,Not applicable
19/01/17,3.75 ,General Retail and Wholesale,"GROCERY STORES, SUPERMARKETS",CEG,TESCO STORE 3235,Not applicable
20/01/17,20.00 ,Travel - Air/Rail/Road,PASSENGER RAILWAYS,CEG,OYSTER AUTOTOPUP,Not applicable
23/01/17,20.00 ,Travel - Air/Rail/Road,PASSENGER RAILWAYS,CEG,OYSTER AUTOTOPUP,Not applicable
23/01/17,20.00 ,Travel - Air/Rail/Road,PASSENGER RAILWAYS,CEG,OYSTER AUTOTOPUP,Not applicable
23/01/17,20.00 ,Travel - Air/Rail/Road,PASSENGER RAILWAYS,CEG,OYSTER BUS AUTOTOP,Not applicable
23/01/17,20.00 ,Travel - Air/Rail/Road,PASSENGER RAILWAYS,CEG,OYSTER AUTOTOPUP,Not applicable
23/01/17,132.09 ,Travel - Air/Rail/Road,PASSENGER RAILWAYS,CEG,TRAINLINE,Not applicable
23/01/17,20.00 ,Travel - Air/Rail/Road,PASSENGER RAILWAYS,CEG,OYSTER AUTOTOPUP,Not applicable
23/01/17,20.00 ,Travel - Air/Rail/Road,PASSENGER RAILWAYS,CEG,OYSTER AUTOTOPUP,Not applicable
25/01/17,276.88 ,Catering and Catering Supplies,CATERERS,CEG,BRAKES,Not applicable
25/01/17,13.55 ,General Retail and Wholesale,"GROCERY STORES, SUPERMARKETS",CEG,TESCO STORE 3235,Not applicable
25/01/17,173.99 ,Books and Periodicals,BOOK STORES,CEG,AMAZON UK MARKETPLACE,Not applicable
25/01/17,35.00 ,Statutory Bodies,GOVERNMENT SERVICES-NOT ELSEWHERE CLASSIFIED,CEG,WWW.ICO.GOV.UK,Not applicable
25/01/17,35.34 ,Mail Order / Direct Selling,DIRECT MARKETING-OTHER DIRECT MARKETERS/NOT ELSEW.,CEG,AMAZON EU,Not applicable
26/01/17,20.00 ,Travel - Air/Rail/Road,PASSENGER RAILWAYS,CEG,OYSTER AUTOTOPUP,Not applicable
27/01/17,2.50 ,General Retail and Wholesale,"GROCERY STORES, SUPERMARKETS",CEG,WAITROSE 673,Not applicable
27/01/17,16.35 ,Books and Periodicals,BOOK STORES,CEG,AMAZON UK MARKETPLACE,Not applicable
27/01/17,35.20 ,Mail Order / Direct Selling,DIRECT MARKETING-OTHER DIRECT MARKETERS/NOT ELSEW.,CEG,AMAZON EU,Not applicable
27/01/17,411.54 ,Books and Periodicals,BOOK STORES,CEG,AMAZON UK MARKETPLACE,Not applicable
27/01/17,20.00 ,Travel - Air/Rail/Road,PASSENGER RAILWAYS,CEG,OYSTER BUS AUTOTOP,Not applicable
27/01/17,20.00 ,Travel - Air/Rail/Road,PASSENGER RAILWAYS,CEG,OYSTER BUS AUTOTOP,Not applicable
27/01/17,20.00 ,Travel - Air/Rail/Road,PASSENGER RAILWAYS,CEG,OYSTER AUTOTOPUP,Not applicable
30/01/17,8.40 ,General Retail and Wholesale,"GROCERY STORES, SUPERMARKETS",CEG,SAINSBURYS SACAT 0069,Not applicable
30/01/17,5.05 ,General Retail and Wholesale,"GROCERY STORES, SUPERMARKETS",CEG,SAINSBURYS SACAT 0069,Not applicable
30/01/17,75.61 ,General Retail and Wholesale,"GROCERY STORES, SUPERMARKETS",CEG,TESCO STORE 3235,Not applicable
30/01/17,10.50 ,Travel - Air/Rail/Road,"BRIDGE AND ROAD FEES, TOLLS",CEG,TFL CC AUTO PAY,Not applicable
30/01/17,509.99 ,Books and Periodicals,BOOK STORES,CEG,AMAZON UK MARKETPLACE,Not applicable
30/01/17,20.00 ,Travel - Air/Rail/Road,PASSENGER RAILWAYS,CEG,OYSTER AUTOTOPUP,Not applicable
30/01/17,20.00 ,Travel - Air/Rail/Road,PASSENGER RAILWAYS,CEG,OYSTER AUTOTOPUP,Not applicable
30/01/17,20.00 ,Travel - Air/Rail/Road,PASSENGER RAILWAYS,CEG,OYSTER AUTOTOPUP,Not applicable
31/01/17,15.95 ,General Retail and Wholesale,MISCELLANEOUS AND SPECIALTY RETAIL STORES,CEG,AMAZON UK RETAIL AMAZO,Not applicable
01/02/17,0.85 ,General Retail and Wholesale,"GROCERY STORES, SUPERMARKETS",CEG,TESCO STORES 6493,Not applicable
01/02/17,223.08 ,Mail Order / Direct Selling,DIRECT MARKETING-CONTINUITY/SUBSCRIPTION MERCHANTS,CEG,THE FINANCIAL TIMES,Not applicable
01/02/17,58.98 ,General Retail and Wholesale,MISCELLANEOUS AND SPECIALTY RETAIL STORES,CEG,AMAZON UK RETAIL AMAZO,Not applicable
01/02/17,29.49 ,General Retail and Wholesale,MISCELLANEOUS AND SPECIALTY RETAIL STORES,CEG,AMAZON UK RETAIL AMAZO,Not applicable
03/02/17,20.00 ,Travel - Air/Rail/Road,PASSENGER RAILWAYS,CEG,OYSTER AUTOTOPUP,Not applicable
03/02/17,20.00 ,Travel - Air/Rail/Road,PASSENGER RAILWAYS,CEG,OYSTER AUTOTOPUP,Not applicable
06/02/17,20.00 ,Travel - Air/Rail/Road,PASSENGER RAILWAYS,CEG,OYSTER AUTOTOPUP,Not applicable
06/02/17,20.00 ,Travel - Air/Rail/Road,PASSENGER RAILWAYS,CEG,OYSTER AUTOTOPUP,Not applicable
07/02/17,30.00 ,Books and Periodicals,BOOK STORES,CEG,AMAZON UK MARKETPLACE,Not applicable
07/02/17,36.84 ,General Retail and Wholesale,MISCELLANEOUS AND SPECIALTY RETAIL STORES,CEG,AMAZON UK RETAIL AMAZO,Not applicable
07/02/17,36.84 ,General Retail and Wholesale,MISCELLANEOUS AND SPECIALTY RETAIL STORES,CEG,AMAZON UK RETAIL AMAZO,Not applicable
08/02/17,10.47 ,General Retail and Wholesale,HARDWARE STORES,CEG,ROBERT DYAS HOLDNG LTD,Not applicable
08/02/17,0.89 ,General Retail and Wholesale,"GROCERY STORES, SUPERMARKETS",CEG,WAITROSE 673,Not applicable
09/02/17,20.00 ,Travel - Air/Rail/Road,PASSENGER RAILWAYS,CEG,OYSTER AUTOTOPUP,Not applicable
10/02/17,12.10 ,General Retail and Wholesale,"GROCERY STORES, SUPERMARKETS",CEG,SAINSBURYS 0069,Not applicable
10/02/17,12.05 ,General Retail and Wholesale,"GROCERY STORES, SUPERMARKETS",CEG,SAINSBURYS 0069,Not applicable
13/02/17,2.50 ,General Retail and Wholesale,"GROCERY STORES, SUPERMARKETS",CEG,WAITROSE 673,Not applicable
13/02/17,20.00 ,Travel - Air/Rail/Road,PASSENGER RAILWAYS,CEG,OYSTER AUTOTOPUP,Not applicable
13/02/17,9.32 ,Miscellaneous Industrial/Commercial Supplies,BUSINESS SERVICES-NOT ELSEWHERE CLASSIFIED,CEG,MAILCHIMP,Not applicable
13/02/17,20.00 ,Travel - Air/Rail/Road,PASSENGER RAILWAYS,CEG,OYSTER BUS AUTOTOP,Not applicable
13/02/17,20.00 ,Travel - Air/Rail/Road,PASSENGER RAILWAYS,CEG,OYSTER AUTOTOPUP,Not applicable
13/02/17,20.00 ,Travel - Air/Rail/Road,PASSENGER RAILWAYS,CEG,OYSTER AUTOTOPUP,Not applicable
16/02/17,0.89 ,General Retail and Wholesale,"GROCERY STORES, SUPERMARKETS",CEG,WAITROSE 673,Not applicable
16/02/17,20.00 ,Travel - Air/Rail/Road,PASSENGER RAILWAYS,CEG,OYSTER BUS AUTOTOP,Not applicable
17/02/17,35.00 ,Statutory Bodies,GOVERNMENT SERVICES-NOT ELSEWHERE CLASSIFIED,CEG,WWW.ICO.GOV.UK,Not applicable
17/02/17,20.00 ,Travel - Air/Rail/Road,PASSENGER RAILWAYS,CEG,OYSTER AUTOTOPUP,Not applicable
17/02/17,20.00 ,Travel - Air/Rail/Road,PASSENGER RAILWAYS,CEG,OYSTER AUTOTOPUP,Not applicable
17/02/17,11.42 ,General Retail and Wholesale,MISCELLANEOUS AND SPECIALTY RETAIL STORES,CEG,AMAZON UK RETAIL AMAZO,Not applicable
20/02/17,20.00 ,Travel - Air/Rail/Road,PASSENGER RAILWAYS,CEG,OYSTER AUTOTOPUP,Not applicable
20/02/17,20.00 ,Travel - Air/Rail/Road,PASSENGER RAILWAYS,CEG,OYSTER AUTOTOPUP,Not applicable
20/02/17,20.00 ,Travel - Air/Rail/Road,PASSENGER RAILWAYS,CEG,OYSTER AUTOTOPUP,Not applicable
20/02/17,20.00 ,Travel - Air/Rail/Road,PASSENGER RAILWAYS,CEG,OYSTER AUTOTOPUP,Not applicable
20/02/17,20.00 ,Travel - Air/Rail/Road,PASSENGER RAILWAYS,CEG,OYSTER AUTOTOPUP,Not applicable
20/02/17,20.00 ,Travel - Air/Rail/Road,PASSENGER RAILWAYS,CEG,OYSTER AUTOTOPUP,Not applicable
20/02/17,75.00 ,Mail Order / Direct Selling,DIRECT MARKETING-OTHER DIRECT MARKETERS/NOT ELSEW.,CEG,AMAZON EU,Not applicable
22/02/17,9.94 ,Books and Periodicals,BOOK STORES,CEG,AMAZON UK MARKETPLACE,Not applicable
23/02/17,44.99 ,Books and Periodicals,BOOK STORES,CEG,AMAZON UK MARKETPLACE,Not applicable
23/02/17,4.95 ,General Retail and Wholesale,"GROCERY STORES, SUPERMARKETS",CEG,SAINSBURYS 0069,Not applicable
23/02/17,10.94 ,General Retail and Wholesale,"GROCERY STORES, SUPERMARKETS",CEG,WAITROSE 673,Not applicable
23/02/17,20.00 ,Travel - Air/Rail/Road,PASSENGER RAILWAYS,CEG,OYSTER AUTOTOPUP,Not applicable
23/02/17,12.95 ,General Retail and Wholesale,MISCELLANEOUS AND SPECIALTY RETAIL STORES,CEG,AMAZON UK RETAIL AMAZO,Not applicable
24/02/17,20.00 ,Travel - Air/Rail/Road,PASSENGER RAILWAYS,CEG,OYSTER AUTOTOPUP,Not applicable
24/02/17,20.00 ,Travel - Air/Rail/Road,PASSENGER RAILWAYS,CEG,OYSTER AUTOTOPUP,Not applicable
27/02/17,5.95 ,General Retail and Wholesale,"GROCERY STORES, SUPERMARKETS",CEG,WAITROSE 673,Not applicable
27/02/17,20.00 ,Travel - Air/Rail/Road,PASSENGER RAILWAYS,CEG,OYSTER AUTOTOPUP,Not applicable
27/02/17,20.00 ,Travel - Air/Rail/Road,PASSENGER RAILWAYS,CEG,OYSTER BUS AUTOTOP,Not applicable
27/02/17,20.00 ,Travel - Air/Rail/Road,PASSENGER RAILWAYS,CEG,OYSTER AUTOTOPUP,Not applicable
27/02/17,20.00 ,Travel - Air/Rail/Road,PASSENGER RAILWAYS,CEG,OYSTER AUTOTOPUP,Not applicable
28/02/17,7.00 ,General Retail and Wholesale,"GROCERY STORES, SUPERMARKETS",CEG,SAINSBURYS SACAT 0069,Not applicable
01/03/17,7.17 ,General Retail and Wholesale,"GROCERY STORES, SUPERMARKETS",CEG,WAITROSE 673,Not applicable
01/03/17,21.00 ,Travel - Air/Rail/Road,"BRIDGE AND ROAD FEES, TOLLS",CEG,TFL CC AUTO PAY,Not applicable
02/03/17,48.33 ,General Retail and Wholesale,SPORTING GOODS STORES,CEG,W H DARBY LTD,Not applicable
03/03/17,119.95 ,Mail Order / Direct Selling,DIRECT MARKETING-CATALOG MERCHANTS,CEG,WWW.NISBETS.COM,Not applicable
03/03/17,20.00 ,Travel - Air/Rail/Road,PASSENGER RAILWAYS,CEG,OYSTER AUTOTOPUP,Not applicable
03/03/17,20.00 ,Travel - Air/Rail/Road,PASSENGER RAILWAYS,CEG,OYSTER BUS AUTOTOP,Not applicable
06/03/17,20.00 ,Travel - Air/Rail/Road,PASSENGER RAILWAYS,CEG,OYSTER AUTOTOPUP,Not applicable
06/03/17,20.00 ,Travel - Air/Rail/Road,PASSENGER RAILWAYS,CEG,OYSTER AUTOTOPUP,Not applicable
06/03/17,20.00 ,Travel - Air/Rail/Road,PASSENGER RAILWAYS,CEG,OYSTER AUTOTOPUP,Not applicable
06/03/17,20.00 ,Travel - Air/Rail/Road,PASSENGER RAILWAYS,CEG,OYSTER BUS AUTOTOP,Not applicable
06/03/17,20.00 ,Travel - Air/Rail/Road,PASSENGER RAILWAYS,CEG,OYSTER AUTOTOPUP,Not applicable
06/03/17,20.00 ,Travel - Air/Rail/Road,PASSENGER RAILWAYS,CEG,OYSTER BUS AUTOTOP,Not applicable
06/03/17,20.00 ,Travel - Air/Rail/Road,PASSENGER RAILWAYS,CEG,OYSTER AUTOTOPUP,Not applicable
07/03/17,5.00 ,General Retail and Wholesale,HARDWARE STORES,CEG,ROBERT DYAS HOLDNG LTD,Not applicable
07/03/17,9.05 ,General Retail and Wholesale,"GROCERY STORES, SUPERMARKETS",CEG,SAINSBURYS 0069,Not applicable
08/03/17,8.00 ,General Retail and Wholesale,"GROCERY STORES, SUPERMARKETS",CEG,SAINSBURYS 0069,Not applicable
08/03/17,15.00 ,Travel - Air/Rail/Road,PASSENGER RAILWAYS,CEG,OYSTER ISSUE WEB,Not applicable
08/03/17,15.00 ,Travel - Air/Rail/Road,PASSENGER RAILWAYS,CEG,OYSTER ISSUE WEB,Not applicable
08/03/17,15.00 ,Travel - Air/Rail/Road,PASSENGER RAILWAYS,CEG,OYSTER ISSUE WEB,Not applicable
08/03/17,15.00 ,Travel - Air/Rail/Road,PASSENGER RAILWAYS,CEG,OYSTER ISSUE WEB,Not applicable
08/03/17,15.00 ,Travel - Air/Rail/Road,PASSENGER RAILWAYS,CEG,OYSTER ISSUE WEB,Not applicable
08/03/17,15.00 ,Travel - Air/Rail/Road,PASSENGER RAILWAYS,CEG,OYSTER ISSUE WEB,Not applicable
09/03/17,20.00 ,Travel - Air/Rail/Road,PASSENGER RAILWAYS,CEG,OYSTER BUS AUTOTOP,Not applicable
09/03/17,20.00 ,Travel - Air/Rail/Road,PASSENGER RAILWAYS,CEG,OYSTER AUTOTOPUP,Not applicable
10/03/17,20.00 ,Travel - Air/Rail/Road,PASSENGER RAILWAYS,CEG,OYSTER BUS AUTOTOP,Not applicable
13/03/17,20.00 ,Travel - Air/Rail/Road,PASSENGER RAILWAYS,CEG,OYSTER AUTOTOPUP,Not applicable
13/03/17,9.55 ,Miscellaneous Industrial/Commercial Supplies,BUSINESS SERVICES-NOT ELSEWHERE CLASSIFIED,CEG,MAILCHIMP,Not applicable
13/03/17,20.00 ,Travel - Air/Rail/Road,PASSENGER RAILWAYS,CEG,OYSTER AUTOTOPUP,Not applicable
13/03/17,20.00 ,Travel - Air/Rail/Road,PASSENGER RAILWAYS,CEG,OYSTER AUTOTOPUP,Not applicable
16/03/17,4.30 ,General Retail and Wholesale,"GROCERY STORES, SUPERMARKETS",CEG,CO-OP GROUP FOOD,Not applicable
17/03/17,600.27 ,Miscellaneous Industrial/Commercial Supplies,"COMMERCIAL EQUIPMENT, NOT ELSEWHERE CLASSIFIED",CEG,COMARK INSTRUMENTS,Not applicable
17/03/17,98.40 ,Miscellaneous Industrial/Commercial Supplies,BUSINESS SERVICES-NOT ELSEWHERE CLASSIFIED,CEG,BRITISH STANDARDS,Not applicable
17/03/17,20.00 ,Travel - Air/Rail/Road,PASSENGER RAILWAYS,CEG,OYSTER AUTOTOPUP,Not applicable
17/03/17,20.00 ,Travel - Air/Rail/Road,PASSENGER RAILWAYS,CEG,OYSTER AUTOTOPUP,Not applicable
20/03/17,20.00 ,Travel - Air/Rail/Road,PASSENGER RAILWAYS,CEG,OYSTER BUS AUTOTOP,Not applicable
20/03/17,20.00 ,Travel - Air/Rail/Road,PASSENGER RAILWAYS,CEG,OYSTER AUTOTOPUP,Not applicable
20/03/17,11.98 ,Books and Periodicals,BOOK STORES,CEG,AMAZON UK MARKETPLACE,Not applicable
20/03/17,84.81 ,Books and Periodicals,BOOK STORES,CEG,AMAZON UK MARKETPLACE,Not applicable
20/03/17,20.00 ,Travel - Air/Rail/Road,PASSENGER RAILWAYS,CEG,OYSTER AUTOTOPUP,Not applicable
21/03/17,3.85 ,General Retail and Wholesale,"GROCERY STORES, SUPERMARKETS",CEG,SAINSBURYS 0069,Not applicable
21/03/17,154.00 ,Travel - Air/Rail/Road,PASSENGER RAILWAYS,CEG,VIRGIN TRAINS,Not applicable
22/03/17,25.00 ,Travel - Air/Rail/Road,PASSENGER RAILWAYS,CEG,OYSTER ISSUE WEB,Not applicable
24/03/17,5.05 ,General Retail and Wholesale,"GROCERY STORES, SUPERMARKETS",CEG,WAITROSE 673,Not applicable
24/03/17,0.75 ,General Retail and Wholesale,"GROCERY STORES, SUPERMARKETS",CEG,SAINSBURYS SACAT 0069,Not applicable
24/03/17,20.00 ,Travel - Air/Rail/Road,PASSENGER RAILWAYS,CEG,OYSTER AUTOTOPUP,Not applicable
24/03/17,20.00 ,Travel - Air/Rail/Road,PASSENGER RAILWAYS,CEG,OYSTER AUTOTOPUP,Not applicable
24/03/17,20.00 ,Travel - Air/Rail/Road,PASSENGER RAILWAYS,CEG,OYSTER AUTOTOPUP,Not applicable
24/03/17,20.00 ,Travel - Air/Rail/Road,PASSENGER RAILWAYS,CEG,OYSTER AUTOTOPUP,Not applicable
24/03/17,20.00 ,Travel - Air/Rail/Road,PASSENGER RAILWAYS,CEG,OYSTER BUS AUTOTOP,Not applicable
27/03/17,20.00 ,Travel - Air/Rail/Road,PASSENGER RAILWAYS,CEG,OYSTER AUTOTOPUP,Not applicable
27/03/17,20.00 ,Travel - Air/Rail/Road,PASSENGER RAILWAYS,CEG,OYSTER AUTOTOPUP,Not applicable
27/03/17,20.00 ,Travel - Air/Rail/Road,PASSENGER RAILWAYS,CEG,OYSTER AUTOTOPUP,Not applicable
28/03/17,88.51 ,General Retail and Wholesale,"GROCERY STORES, SUPERMARKETS",CEG,ASDA STORES,Not applicable
29/03/17,114.00 ,Professional Services,"ATTORNEYS, LEGAL SERVICES",CEG,PP ABC FOOD LAW,Not applicable
29/03/17,20.00 ,Travel - Air/Rail/Road,PASSENGER RAILWAYS,CEG,OYSTER AUTOTOPUP,Not applicable
30/03/17,20.00 ,Travel - Air/Rail/Road,PASSENGER RAILWAYS,CEG,OYSTER AUTOTOPUP,Not applicable
30/03/17,20.00 ,Travel - Air/Rail/Road,PASSENGER RAILWAYS,CEG,OYSTER AUTOTOPUP,Not applicable
31/03/17,13.10 ,General Retail and Wholesale,DISCOUNT STORES,CEG,POUNDLAND LTD 1027,Not applicable
31/03/17,0.89 ,General Retail and Wholesale,"GROCERY STORES, SUPERMARKETS",CEG,WAITROSE 673,Not applicable
31/03/17,21.60 ,Computer Equipment & Services,COMPUTER SOFTWARE STORES,CEG,SPARKOL,Not applicable
31/03/17,20.00 ,Travel - Air/Rail/Road,PASSENGER RAILWAYS,CEG,OYSTER AUTOTOPUP,Not applicable
31/03/17,20.00 ,Travel - Air/Rail/Road,PASSENGER RAILWAYS,CEG,OYSTER AUTOTOPUP,Not applicable
02/01/17,12.30 ,Travel - Air/Rail/Road,PASSENGER RAILWAYS,CHILDREN'S SERVICES,SOUTHEASTERN WEB,Not applicable
02/01/17,175.40 ,Travel - Air/Rail/Road,PASSENGER RAILWAYS,CHILDREN'S SERVICES,SOUTHEASTERN WEB,Not applicable
02/01/17,154.50 ,Travel - Air/Rail/Road,PASSENGER RAILWAYS,CHILDREN'S SERVICES,SOUTHEASTERN WEB,Not applicable
02/01/17,87.70 ,Travel - Air/Rail/Road,PASSENGER RAILWAYS,CHILDREN'S SERVICES,SOUTHEASTERN WEB,Not applicable
04/01/17,167.90 ,Travel - Air/Rail/Road,PASSENGER RAILWAYS,CHILDREN'S SERVICES,VIRGIN TRAINS,Not applicable
05/01/17,175.40 ,Travel - Air/Rail/Road,PASSENGER RAILWAYS,CHILDREN'S SERVICES,SOUTHEASTERN WEB,Not applicable
05/01/17,87.70 ,Travel - Air/Rail/Road,PASSENGER RAILWAYS,CHILDREN'S SERVICES,SOUTHEASTERN WEB,Not applicable
05/01/17,40.40 ,Travel - Air/Rail/Road,PASSENGER RAILWAYS,CHILDREN'S SERVICES,SOUTHEASTERN WEB,Not applicable
05/01/17,275.00 ,Travel - Air/Rail/Road,PASSENGER RAILWAYS,CHILDREN'S SERVICES,SOUTHEASTERN WEB,Not applicable
05/01/17,27.50 ,Travel - Air/Rail/Road,LIMOUSINES AND TAXICABS,CHILDREN'S SERVICES,AAA TAXIS PRESTON LTD,Not applicable
05/01/17,23.60 ,Travel - Air/Rail/Road,PASSENGER RAILWAYS,CHILDREN'S SERVICES,THE CHILTERN RLYWY,Not applicable
06/01/17,178.60 ,Travel - Air/Rail/Road,PASSENGER RAILWAYS,CHILDREN'S SERVICES,VIRGIN TRAINS,Not applicable
09/01/17,252.00 ,Leisure Activities,RECREATION SERVICES (NOT ELSEWHERE CLASSIFIED),CHILDREN'S SERVICES,WWW.FLIPOUT.CO.UK,Not applicable
09/01/17,29.30 ,Travel - Air/Rail/Road,PASSENGER RAILWAYS,CHILDREN'S SERVICES,SOUTHEASTERN WEB,Not applicable
09/01/17,82.90 ,Travel - Air/Rail/Road,PASSENGER RAILWAYS,CHILDREN'S SERVICES,SOUTHEASTERN WEB,Not applicable
09/01/17,-235.00 ,Travel - Air/Rail/Road,PASSENGER RAILWAYS,CHILDREN'S SERVICES,SOUTHERN RAILWAY WEB,Not applicable
09/01/17,-235.00 ,Travel - Air/Rail/Road,PASSENGER RAILWAYS,CHILDREN'S SERVICES,SOUTHERN RAILWAY WEB,Not applicable
09/01/17,100.50 ,Travel - Air/Rail/Road,PASSENGER RAILWAYS,CHILDREN'S SERVICES,VIRGIN TRAINS,Not applicable
09/01/17,63.60 ,Travel - Air/Rail/Road,PASSENGER RAILWAYS,CHILDREN'S SERVICES,TL&GN RAILWAY WEB,Not applicable
10/01/17,20.00 ,Travel - Air/Rail/Road,PASSENGER RAILWAYS,CHILDREN'S SERVICES,OYSTER BUS AUTOTOP,Not applicable
10/01/17,44.00 ,Travel - Air/Rail/Road,LIMOUSINES AND TAXICABS,CHILDREN'S SERVICES,TAXIPAY TAXI FARE,Not applicable
12/01/17,50.50 ,Travel - Air/Rail/Road,PASSENGER RAILWAYS,CHILDREN'S SERVICES,VIRGINTRAINSEC SERVCS,Not applicable
12/01/17,35.39 ,Travel - Air/Rail/Road,PASSENGER RAILWAYS,CHILDREN'S SERVICES,TRAINLINE,Not applicable
16/01/17,133.22 ,General Retail and Wholesale,"GROCERY STORES, SUPERMARKETS",CHILDREN'S SERVICES,SAINSBURYS (0069),Not applicable
16/01/17,24.80 ,Travel - Air/Rail/Road,PASSENGER RAILWAYS,CHILDREN'S SERVICES,SOUTHEASTERN WEB,Not applicable
18/01/17,12.30 ,Travel - Air/Rail/Road,PASSENGER RAILWAYS,CHILDREN'S SERVICES,SOUTHEASTERN WEB,Not applicable
18/01/17,12.30 ,Travel - Air/Rail/Road,PASSENGER RAILWAYS,CHILDREN'S SERVICES,SOUTHEASTERN WEB,Not applicable
18/01/17,328.00 ,Travel - Air/Rail/Road,PASSENGER RAILWAYS,CHILDREN'S SERVICES,SOUTHEASTERN WEB,Not applicable
18/01/17,31.90 ,Travel - Air/Rail/Road,PASSENGER RAILWAYS,CHILDREN'S SERVICES,SOUTHEASTERN WEB,Not applicable
18/01/17,28.10 ,Travel - Air/Rail/Road,PASSENGER RAILWAYS,CHILDREN'S SERVICES,VIRGIN TRAINS,Not applicable
18/01/17,-53.60 ,Travel - Air/Rail/Road,PASSENGER RAILWAYS,CHILDREN'S SERVICES,TL&GN RAILWAY WEB,Not applicable
20/01/17,12.30 ,Travel - Air/Rail/Road,PASSENGER RAILWAYS,CHILDREN'S SERVICES,SOUTHEASTERN WEB,Not applicable
20/01/17,87.70 ,Travel - Air/Rail/Road,PASSENGER RAILWAYS,CHILDREN'S SERVICES,SOUTHEASTERN WEB,Not applicable
20/01/17,638.75 ,Travel - Air/Rail/Road,PASSENGER RAILWAYS,CHILDREN'S SERVICES,SOUTHEASTERN WEB,Not applicable
20/01/17,50.20 ,Travel - Air/Rail/Road,PASSENGER RAILWAYS,CHILDREN'S SERVICES,SOUTHEASTERN WEB,Not applicable
23/01/17,87.70 ,Travel - Air/Rail/Road,PASSENGER RAILWAYS,CHILDREN'S SERVICES,SOUTHEASTERN WEB,Not applicable
23/01/17,12.30 ,Travel - Air/Rail/Road,PASSENGER RAILWAYS,CHILDREN'S SERVICES,SOUTHEASTERN WEB,Not applicable
23/01/17,31.20 ,Travel - Air/Rail/Road,PASSENGER RAILWAYS,CHILDREN'S SERVICES,SOUTHEASTERN WEB,Not applicable
23/01/17,59.00 ,Hotels and Accommodation,"LODGING-HOTELS,MOTELS,RESORTS-NOT CLASSIFIED",CHILDREN'S SERVICES,CALEDONIAN HOTEL LTD,Not applicable
24/01/17,20.00 ,Travel - Air/Rail/Road,PASSENGER RAILWAYS,CHILDREN'S SERVICES,OYSTER BUS AUTOTOP,Not applicable
24/01/17,250.30 ,Travel - Air/Rail/Road,PASSENGER RAILWAYS,CHILDREN'S SERVICES,VIRGIN TRAINS,Not applicable
24/01/17,264.20 ,Travel - Air/Rail/Road,PASSENGER RAILWAYS,CHILDREN'S SERVICES,VIRGIN TRAINS,Not applicable
24/01/17,272.70 ,Travel - Air/Rail/Road,PASSENGER RAILWAYS,CHILDREN'S SERVICES,VIRGIN TRAINS,Not applicable
27/01/17,67.45 ,Hotels and Accommodation,"LODGING-HOTELS,MOTELS,RESORTS-NOT CLASSIFIED",CHILDREN'S SERVICES,THE CAIRNDALE HOTEL,Not applicable
30/01/17,73.00 ,Travel - Air/Rail/Road,PASSENGER RAILWAYS,CHILDREN'S SERVICES,SOUTHEASTERN WEB,Not applicable
30/01/17,12.00 ,Travel - Air/Rail/Road,PASSENGER RAILWAYS,CHILDREN'S SERVICES,SOUTHEASTERN WEB,Not applicable
30/01/17,12.30 ,Travel - Air/Rail/Road,PASSENGER RAILWAYS,CHILDREN'S SERVICES,SOUTHEASTERN WEB,Not applicable
01/02/17,175.40 ,Travel - Air/Rail/Road,PASSENGER RAILWAYS,CHILDREN'S SERVICES,SOUTHEASTERN WEB,Not applicable
01/02/17,87.70 ,Travel - Air/Rail/Road,PASSENGER RAILWAYS,CHILDREN'S SERVICES,SOUTHEASTERN WEB,Not applicable
01/02/17,47.50 ,Travel - Air/Rail/Road,PASSENGER RAILWAYS,CHILDREN'S SERVICES,SOUTHEASTERN WEB,Not applicable
01/02/17,137.60 ,Travel - Air/Rail/Road,PASSENGER RAILWAYS,CHILDREN'S SERVICES,SOUTHEASTERN WEB,Not applicable
01/02/17,175.40 ,Travel - Air/Rail/Road,PASSENGER RAILWAYS,CHILDREN'S SERVICES,SOUTHEASTERN WEB,Not applicable
01/02/17,84.81 ,Travel - Air/Rail/Road,EASYJET,CHILDREN'S SERVICES,EASYJET,Not applicable
01/02/17,110.70 ,Travel - Air/Rail/Road,PASSENGER RAILWAYS,CHILDREN'S SERVICES,VIRGIN TRAINS,Not applicable
01/02/17,167.80 ,Travel - Air/Rail/Road,PASSENGER RAILWAYS,CHILDREN'S SERVICES,VIRGIN TRAINS,Not applicable
02/02/17,-200.00 ,Travel - Air/Rail/Road,PASSENGER RAILWAYS,CHILDREN'S SERVICES,SOUTHEASTERN WEB,Not applicable
03/02/17,1479.00 ,Travel - Air/Rail/Road,TRAVEL AGENCIES AND TOUR OPERATORS,CHILDREN'S SERVICES,THOMSON,Not applicable
03/02/17,2273.58 ,Travel - Air/Rail/Road,TRAVEL AGENCIES AND TOUR OPERATORS,CHILDREN'S SERVICES,THOMSON,Not applicable
07/02/17,12.30 ,Travel - Air/Rail/Road,PASSENGER RAILWAYS,CHILDREN'S SERVICES,SOUTHEASTERN WEB,Not applicable
07/02/17,71.40 ,Travel - Air/Rail/Road,PASSENGER RAILWAYS,CHILDREN'S SERVICES,SOUTHEASTERN WEB,Not applicable
07/02/17,12.30 ,Travel - Air/Rail/Road,PASSENGER RAILWAYS,CHILDREN'S SERVICES,SOUTHEASTERN WEB,Not applicable
07/02/17,56.50 ,Travel - Air/Rail/Road,PASSENGER RAILWAYS,CHILDREN'S SERVICES,GWR WEBSALES,Not applicable
08/02/17,145.20 ,General Retail and Wholesale,HOUSEHOLD APPLIANCE STORES,CHILDREN'S SERVICES,WILKO.COM,Not applicable
08/02/17,12.30 ,Travel - Air/Rail/Road,PASSENGER RAILWAYS,CHILDREN'S SERVICES,SOUTHEASTERN WEB,Not applicable
08/02/17,159.00 ,Travel - Air/Rail/Road,PASSENGER RAILWAYS,CHILDREN'S SERVICES,VIRGIN TRAINS,Not applicable
08/02/17,87.55 ,Travel - Air/Rail/Road,PASSENGER RAILWAYS,CHILDREN'S SERVICES,SOUTHERN RAILWAY WEB,Not applicable
09/02/17,98.70 ,Travel - Air/Rail/Road,PASSENGER RAILWAYS,CHILDREN'S SERVICES,VIRGIN TRAINS,Not applicable
10/02/17,96.30 ,Hotels and Accommodation,"LODGING-HOTELS,MOTELS,RESORTS-NOT CLASSIFIED",CHILDREN'S SERVICES,QHOTELS RESERVATIONS,Not applicable
10/02/17,34.10 ,Travel - Air/Rail/Road,PASSENGER RAILWAYS,CHILDREN'S SERVICES,SOUTHERN RAILWAY WEB,Not applicable
10/02/17,20.00 ,Travel - Air/Rail/Road,LIMOUSINES AND TAXICABS,CHILDREN'S SERVICES,SUSSEX 247 CARS,Not applicable
10/02/17,98.20 ,Travel - Air/Rail/Road,PASSENGER RAILWAYS,CHILDREN'S SERVICES,VIRGIN TRAINS,Not applicable
10/02/17,257.80 ,Travel - Air/Rail/Road,PASSENGER RAILWAYS,CHILDREN'S SERVICES,VIRGIN TRAINS,Not applicable
10/02/17,23.60 ,Travel - Air/Rail/Road,PASSENGER RAILWAYS,CHILDREN'S SERVICES,VIRGIN TRAINS,Not applicable
13/02/17,120.30 ,General Retail and Wholesale,"GROCERY STORES, SUPERMARKETS",CHILDREN'S SERVICES,SAINSBURYS (0069),Not applicable
13/02/17,50.20 ,Travel - Air/Rail/Road,PASSENGER RAILWAYS,CHILDREN'S SERVICES,SOUTHEASTERN WEB,Not applicable
13/02/17,50.20 ,Travel - Air/Rail/Road,PASSENGER RAILWAYS,CHILDREN'S SERVICES,SOUTHEASTERN WEB,Not applicable
13/02/17,141.99 ,Travel - Air/Rail/Road,TRAVEL AGENCIES AND TOUR OPERATORS,CHILDREN'S SERVICES,HOTELS COM,Not applicable
13/02/17,1075.16 ,Travel - Air/Rail/Road,BRITISH A,CHILDREN'S SERVICES,BRITISH A,Not applicable
14/02/17,468.00 ,General Retail and Wholesale,MISCELLANEOUS AND SPECIALTY RETAIL STORES,CHILDREN'S SERVICES,ESCAPEHUNTL,Not applicable
14/02/17,-318.00 ,Travel - Air/Rail/Road,PASSENGER RAILWAYS,CHILDREN'S SERVICES,SOUTHEASTERN WEB,Not applicable
14/02/17,110.40 ,Travel - Air/Rail/Road,TRAVEL AGENCIES AND TOUR OPERATORS,CHILDREN'S SERVICES,HOTELS COM,Not applicable
15/02/17,294.80 ,General Retail and Wholesale,HOUSEHOLD APPLIANCE STORES,CHILDREN'S SERVICES,WILKO.COM,Not applicable
15/02/17,90.00 ,Leisure Activities,"DANCE HALLS, SCHOOLS, AND STUDIOS",CHILDREN'S SERVICES,KIDZANIA,Not applicable
16/02/17,20.00 ,Travel - Air/Rail/Road,PASSENGER RAILWAYS,CHILDREN'S SERVICES,OYSTER BUS AUTOTOP,Not applicable
16/02/17,89.90 ,Travel - Air/Rail/Road,PASSENGER RAILWAYS,CHILDREN'S SERVICES,VIRGIN TRAINS,Not applicable
17/02/17,49.70 ,Travel - Air/Rail/Road,PASSENGER RAILWAYS,CHILDREN'S SERVICES,SOUTHEASTERN WEB,Not applicable
17/02/17,62.00 ,Travel - Air/Rail/Road,PASSENGER RAILWAYS,CHILDREN'S SERVICES,SOUTHEASTERN WEB,Not applicable
17/02/17,32.70 ,Travel - Air/Rail/Road,PASSENGER RAILWAYS,CHILDREN'S SERVICES,SOUTHEASTERN WEB,Not applicable
21/02/17,456.25 ,Travel - Air/Rail/Road,PASSENGER RAILWAYS,CHILDREN'S SERVICES,SOUTHEASTERN WEB,Not applicable
23/02/17,20.00 ,Travel - Air/Rail/Road,PASSENGER RAILWAYS,CHILDREN'S SERVICES,OYSTER BUS AUTOTOP,Not applicable
24/02/17,305.00 ,Hotels and Accommodation,TRAVELODGE,CHILDREN'S SERVICES,TRAVELODGE,Not applicable
27/02/17,20.00 ,Travel - Air/Rail/Road,PASSENGER RAILWAYS,CHILDREN'S SERVICES,OYSTER BUS AUTOTOP,Not applicable
27/02/17,284.00 ,Restaurants and Bars,"EATING PLACES, RESTAURANTS",CHILDREN'S SERVICES,PREMIER INN 44534170,Not applicable
27/02/17,-217.00 ,Hotels and Accommodation,TRAVELODGE,CHILDREN'S SERVICES,TRAVELODGE,Not applicable
27/02/17,109.80 ,Travel - Air/Rail/Road,PASSENGER RAILWAYS,CHILDREN'S SERVICES,VIRGIN TRAINS,Not applicable
27/02/17,132.00 ,Travel - Air/Rail/Road,LIMOUSINES AND TAXICABS,CHILDREN'S SERVICES,BERKELEY EXECUTIVE TRA,Not applicable
27/02/17,176.70 ,Travel - Air/Rail/Road,PASSENGER RAILWAYS,CHILDREN'S SERVICES,GWR WEBSALES,Not applicable
28/02/17,69.36 ,Travel - Air/Rail/Road,PASSENGER RAILWAYS,CHILDREN'S SERVICES,TRAINLINE,Not applicable
28/02/17,20.00 ,Travel - Air/Rail/Road,PASSENGER RAILWAYS,CHILDREN'S SERVICES,OYSTER BUS AUTOTOP,Not applicable
01/03/17,42.00 ,Leisure Activities,TOURIST ATTRACTIONS AND EXHIBITS,CHILDREN'S SERVICES,SEA LIFE CENTRE,Not applicable
01/03/17,718.00 ,Restaurants and Bars,"EATING PLACES, RESTAURANTS",CHILDREN'S SERVICES,PREMIER INN 44534170,Not applicable
01/03/17,91.10 ,Travel - Air/Rail/Road,PASSENGER RAILWAYS,CHILDREN'S SERVICES,VIRGIN TRAINS,Not applicable
02/03/17,89.10 ,Hotels and Accommodation,"LODGING-HOTELS,MOTELS,RESORTS-NOT CLASSIFIED",CHILDREN'S SERVICES,CROWNE PLAZA MANCHESTE,Not applicable
02/03/17,55.00 ,Travel - Air/Rail/Road,LIMOUSINES AND TAXICABS,CHILDREN'S SERVICES,EVEREST TAXIS,Not applicable
03/03/17,49.30 ,Travel - Air/Rail/Road,PASSENGER RAILWAYS,CHILDREN'S SERVICES,SOUTHEASTERN WEB,Not applicable
03/03/17,17.50 ,Travel - Air/Rail/Road,PASSENGER RAILWAYS,CHILDREN'S SERVICES,SOUTHEASTERN WEB,Not applicable
03/03/17,46.00 ,Travel - Air/Rail/Road,PASSENGER RAILWAYS,CHILDREN'S SERVICES,SOUTHEASTERN WEB,Not applicable
03/03/17,87.70 ,Travel - Air/Rail/Road,PASSENGER RAILWAYS,CHILDREN'S SERVICES,SOUTHEASTERN WEB,Not applicable
06/03/17,275.00 ,Travel - Air/Rail/Road,PASSENGER RAILWAYS,CHILDREN'S SERVICES,SOUTHEASTERN WEB,Not applicable
06/03/17,13.60 ,Travel - Air/Rail/Road,PASSENGER RAILWAYS,CHILDREN'S SERVICES,SOUTHEASTERN WEB,Not applicable
06/03/17,175.40 ,Travel - Air/Rail/Road,PASSENGER RAILWAYS,CHILDREN'S SERVICES,SOUTHEASTERN WEB,Not applicable
06/03/17,27.55 ,Travel - Air/Rail/Road,PASSENGER RAILWAYS,CHILDREN'S SERVICES,SOUTHEASTERN WEB,Not applicable
06/03/17,293.96 ,Travel - Air/Rail/Road,AER LINGUS,CHILDREN'S SERVICES,AER LINGUS,Not applicable
06/03/17,288.20 ,Travel - Air/Rail/Road,PASSENGER RAILWAYS,CHILDREN'S SERVICES,VIRGIN TRAINS,Not applicable
08/03/17,689.00 ,Restaurants and Bars,"EATING PLACES, RESTAURANTS",CHILDREN'S SERVICES,PREMIER INN 44534170,Not applicable
08/03/17,127.05 ,Travel - Air/Rail/Road,PASSENGER RAILWAYS,CHILDREN'S SERVICES,VIRGIN TRAINS,Not applicable
09/03/17,37.68 ,General Retail and Wholesale,MISCELLANEOUS AND SPECIALTY RETAIL STORES,CHILDREN'S SERVICES,AMAZON UK RETAIL AMAZO,Not applicable
10/03/17,98.00 ,Travel - Air/Rail/Road,PASSENGER RAILWAYS,CHILDREN'S SERVICES,SOUTHEASTERN WEB,Not applicable
10/03/17,17.50 ,Travel - Air/Rail/Road,PASSENGER RAILWAYS,CHILDREN'S SERVICES,SOUTHEASTERN WEB,Not applicable
10/03/17,50.20 ,Travel - Air/Rail/Road,PASSENGER RAILWAYS,CHILDREN'S SERVICES,SOUTHEASTERN WEB,Not applicable
10/03/17,50.20 ,Travel - Air/Rail/Road,PASSENGER RAILWAYS,CHILDREN'S SERVICES,SOUTHEASTERN WEB,Not applicable
10/03/17,58.56 ,Travel - Air/Rail/Road,EASYJET,CHILDREN'S SERVICES,EASYJET,Not applicable
10/03/17,22.90 ,Travel - Air/Rail/Road,PASSENGER RAILWAYS,CHILDREN'S SERVICES,SOUTHEASTERN WEB,Not applicable
13/03/17,99.00 ,General Retail and Wholesale,"GROCERY STORES, SUPERMARKETS",CHILDREN'S SERVICES,SAINSBURYS (0069),Not applicable
13/03/17,12.30 ,Travel - Air/Rail/Road,PASSENGER RAILWAYS,CHILDREN'S SERVICES,SOUTHEASTERN WEB,Not applicable
13/03/17,12.30 ,Travel - Air/Rail/Road,PASSENGER RAILWAYS,CHILDREN'S SERVICES,SOUTHEASTERN WEB,Not applicable
13/03/17,12.30 ,Travel - Air/Rail/Road,PASSENGER RAILWAYS,CHILDREN'S SERVICES,SOUTHEASTERN WEB,Not applicable
13/03/17,12.30 ,Travel - Air/Rail/Road,PASSENGER RAILWAYS,CHILDREN'S SERVICES,SOUTHEASTERN WEB,Not applicable
13/03/17,-77.70 ,Travel - Air/Rail/Road,PASSENGER RAILWAYS,CHILDREN'S SERVICES,SOUTHEASTERN WEB,Not applicable
13/03/17,126.60 ,Travel - Air/Rail/Road,PASSENGER RAILWAYS,CHILDREN'S SERVICES,VIRGIN TRAINS,Not applicable
13/03/17,177.00 ,Travel - Air/Rail/Road,PASSENGER RAILWAYS,CHILDREN'S SERVICES,VIRGIN TRAINS,Not applicable
13/03/17,90.00 ,Hotels and Accommodation,HOLIDAY INNS,CHILDREN'S SERVICES,HOLIDAY INNS,Not applicable
13/03/17,86.00 ,Hotels and Accommodation,HOLIDAY INNS,CHILDREN'S SERVICES,HOLIDAY INNS,Not applicable
14/03/17,33.70 ,Travel - Air/Rail/Road,PASSENGER RAILWAYS,CHILDREN'S SERVICES,SOUTHEASTERN WEB,Not applicable
14/03/17,15.30 ,Travel - Air/Rail/Road,PASSENGER RAILWAYS,CHILDREN'S SERVICES,SOUTHEASTERN WEB,Not applicable
14/03/17,31.20 ,Travel - Air/Rail/Road,PASSENGER RAILWAYS,CHILDREN'S SERVICES,SOUTHEASTERN WEB,Not applicable
14/03/17,325.60 ,Travel - Air/Rail/Road,EASYJET,CHILDREN'S SERVICES,EASYJET,Not applicable
15/03/17,134.60 ,Travel - Air/Rail/Road,PASSENGER RAILWAYS,CHILDREN'S SERVICES,VIRGIN TRAINS,Not applicable
15/03/17,353.92 ,Travel - Air/Rail/Road,EASYJET,CHILDREN'S SERVICES,EASYJET,Not applicable
16/03/17,49.30 ,Travel - Air/Rail/Road,PASSENGER RAILWAYS,CHILDREN'S SERVICES,SOUTHEASTERN WEB,Not applicable
16/03/17,68.00 ,Travel - Air/Rail/Road,PASSENGER RAILWAYS,CHILDREN'S SERVICES,VIRGIN TRAINS,Not applicable
16/03/17,6.50 ,Travel - Air/Rail/Road,LIMOUSINES AND TAXICABS,CHILDREN'S SERVICES,GO CARZ,Not applicable
16/03/17,6.50 ,Travel - Air/Rail/Road,LIMOUSINES AND TAXICABS,CHILDREN'S SERVICES,GO CARZ,Not applicable
16/03/17,19.30 ,Travel - Air/Rail/Road,LIMOUSINES AND TAXICABS,CHILDREN'S SERVICES,GO CARZ,Not applicable
16/03/17,18.88 ,Travel - Air/Rail/Road,LIMOUSINES AND TAXICABS,CHILDREN'S SERVICES,GO CARZ,Not applicable
20/03/17,93.60 ,Hotels and Accommodation,"LODGING-HOTELS,MOTELS,RESORTS-NOT CLASSIFIED",CHILDREN'S SERVICES,QHOTELS WEBSITE BOOKIN,Not applicable
20/03/17,-37.30 ,Travel - Air/Rail/Road,PASSENGER RAILWAYS,CHILDREN'S SERVICES,VIRGINTRAINS.CO.UK,Not applicable
20/03/17,-52.50 ,Travel - Air/Rail/Road,PASSENGER RAILWAYS,CHILDREN'S SERVICES,VIRGINTRAINS.CO.UK,Not applicable
22/03/17,61.53 ,Travel - Air/Rail/Road,LIMOUSINES AND TAXICABS,CHILDREN'S SERVICES,VERIFONE TAXI/PRIVATE,Not applicable
23/03/17,-73.90 ,Travel - Air/Rail/Road,PASSENGER RAILWAYS,CHILDREN'S SERVICES,VIRGINTRAINS.CO.UK,Not applicable
23/03/17,420.75 ,Travel - Air/Rail/Road,PASSENGER RAILWAYS,CHILDREN'S SERVICES,VIRGIN TRAINS,Not applicable
23/03/17,69.90 ,Travel - Air/Rail/Road,PASSENGER RAILWAYS,CHILDREN'S SERVICES,VIRGIN TRAINS,Not applicable
24/03/17,83.40 ,Travel - Air/Rail/Road,PASSENGER RAILWAYS,CHILDREN'S SERVICES,SOUTHEASTERN WEB,Not applicable
24/03/17,39.00 ,Travel - Air/Rail/Road,PASSENGER RAILWAYS,CHILDREN'S SERVICES,SOUTHEASTERN WEB,Not applicable
24/03/17,71.40 ,Travel - Air/Rail/Road,PASSENGER RAILWAYS,CHILDREN'S SERVICES,SOUTHEASTERN WEB,Not applicable
24/03/17,17.50 ,Travel - Air/Rail/Road,PASSENGER RAILWAYS,CHILDREN'S SERVICES,SOUTHEASTERN WEB,Not applicable
24/03/17,63.30 ,Travel - Air/Rail/Road,PASSENGER RAILWAYS,CHILDREN'S SERVICES,VIRGIN TRAINS,Not applicable
24/03/17,-12.90 ,Travel - Air/Rail/Road,PASSENGER RAILWAYS,CHILDREN'S SERVICES,SOUTHEASTERN WEB,Not applicable
27/03/17,-38.20 ,Travel - Air/Rail/Road,PASSENGER RAILWAYS,CHILDREN'S SERVICES,SOUTHEASTERN WEB,Not applicable
27/03/17,20.00 ,Travel - Air/Rail/Road,PASSENGER RAILWAYS,CHILDREN'S SERVICES,OYSTER AUTOTOPUP,Not applicable
27/03/17,120.00 ,Travel - Air/Rail/Road,BRITISH A,CHILDREN'S SERVICES,BRITISH A,Not applicable
27/03/17,129.00 ,Hotels and Accommodation,"LODGING-HOTELS,MOTELS,RESORTS-NOT CLASSIFIED",CHILDREN'S SERVICES,CROWNE PLAZA BIRMINGHA,Not applicable
28/03/17,318.00 ,Travel - Air/Rail/Road,PASSENGER RAILWAYS,CHILDREN'S SERVICES,SOUTHEASTERN WEB,Not applicable
28/03/17,7.60 ,Travel - Air/Rail/Road,PASSENGER RAILWAYS,CHILDREN'S SERVICES,SOUTHEASTERN WEB,Not applicable
28/03/17,29.30 ,Travel - Air/Rail/Road,PASSENGER RAILWAYS,CHILDREN'S SERVICES,SOUTHEASTERN WEB,Not applicable
28/03/17,25.40 ,Travel - Air/Rail/Road,PASSENGER RAILWAYS,CHILDREN'S SERVICES,SOUTHEASTERN WEB,Not applicable
30/03/17,178.50 ,Leisure Activities,TOURIST ATTRACTIONS AND EXHIBITS,CHILDREN'S SERVICES,THE CHESTNUT CENTRE,Not applicable
30/03/17,137.60 ,Travel - Air/Rail/Road,PASSENGER RAILWAYS,CHILDREN'S SERVICES,SOUTHEASTERN WEB,Not applicable
30/03/17,125.00 ,Restaurants and Bars,"BAR,LOUNGE,DISCO,NIGHTCLUB,TAVERN-ALCOHOLIC DRINKS",CHILDREN'S SERVICES,PROVINCIAL COUNTY HOTE,Not applicable
31/03/17,500.00 ,Leisure Activities,"CLUBS-CNTRY,MBRSHIP(ATHLET,REC,SPRTS,PRIVATE GOLF",CHILDREN'S SERVICES,THFC FOOTBALL DEV,Not applicable
02/01/17,20.00 ,Travel - Air/Rail/Road,PASSENGER RAILWAYS,ENVIRONMENT AND COMMUNITY SERVICES,OYSTER AUTOTOPUP,Not applicable
02/01/17,20.00 ,Travel - Air/Rail/Road,PASSENGER RAILWAYS,ENVIRONMENT AND COMMUNITY SERVICES,OYSTER BUS AUTOTOP,Not applicable
02/01/17,20.00 ,Travel - Air/Rail/Road,PASSENGER RAILWAYS,ENVIRONMENT AND COMMUNITY SERVICES,OYSTER AUTOTOPUP,Not applicable
02/01/17,19.50 ,Statutory Bodies,GOVERNMENT SERVICES-NOT ELSEWHERE CLASSIFIED,ENVIRONMENT AND COMMUNITY SERVICES,DVLA VEHICLE TAX,Not applicable
02/01/17,19.50 ,Statutory Bodies,GOVERNMENT SERVICES-NOT ELSEWHERE CLASSIFIED,ENVIRONMENT AND COMMUNITY SERVICES,DVLA VEHICLE TAX,Not applicable
02/01/17,19.50 ,Statutory Bodies,GOVERNMENT SERVICES-NOT ELSEWHERE CLASSIFIED,ENVIRONMENT AND COMMUNITY SERVICES,DVLA VEHICLE TAX,Not applicable
02/01/17,232.50 ,Statutory Bodies,GOVERNMENT SERVICES-NOT ELSEWHERE CLASSIFIED,ENVIRONMENT AND COMMUNITY SERVICES,DVLA VEHICLE TAX,Not applicable
02/01/17,272.50 ,Statutory Bodies,GOVERNMENT SERVICES-NOT ELSEWHERE CLASSIFIED,ENVIRONMENT AND COMMUNITY SERVICES,DVLA VEHICLE TAX,Not applicable
02/01/17,272.50 ,Statutory Bodies,GOVERNMENT SERVICES-NOT ELSEWHERE CLASSIFIED,ENVIRONMENT AND COMMUNITY SERVICES,DVLA VEHICLE TAX,Not applicable
02/01/17,272.50 ,Statutory Bodies,GOVERNMENT SERVICES-NOT ELSEWHERE CLASSIFIED,ENVIRONMENT AND COMMUNITY SERVICES,DVLA VEHICLE TAX,Not applicable
02/01/17,12.50 ,Statutory Bodies,GOVERNMENT SERVICES-NOT ELSEWHERE CLASSIFIED,ENVIRONMENT AND COMMUNITY SERVICES,DVLA VEHICLE TAX,Not applicable
04/01/17,19.50 ,Statutory Bodies,GOVERNMENT SERVICES-NOT ELSEWHERE CLASSIFIED,ENVIRONMENT AND COMMUNITY SERVICES,DVLA VEHICLE TAX,Not applicable
05/01/17,65.00 ,Statutory Bodies,GOVERNMENT SERVICES-NOT ELSEWHERE CLASSIFIED,ENVIRONMENT AND COMMUNITY SERVICES,LONDON BOROUGH OF,Not applicable
06/01/17,20.00 ,Travel - Air/Rail/Road,PASSENGER RAILWAYS,ENVIRONMENT AND COMMUNITY SERVICES,OYSTER BUS AUTOTOP,Not applicable
09/01/17,20.00 ,Travel - Air/Rail/Road,PASSENGER RAILWAYS,ENVIRONMENT AND COMMUNITY SERVICES,OYSTER BUS AUTOTOP,Not applicable
09/01/17,20.00 ,Travel - Air/Rail/Road,PASSENGER RAILWAYS,ENVIRONMENT AND COMMUNITY SERVICES,OYSTER AUTOTOPUP,Not applicable
09/01/17,20.00 ,Travel - Air/Rail/Road,PASSENGER RAILWAYS,ENVIRONMENT AND COMMUNITY SERVICES,OYSTER AUTOTOPUP,Not applicable
09/01/17,20.00 ,Travel - Air/Rail/Road,PASSENGER RAILWAYS,ENVIRONMENT AND COMMUNITY SERVICES,OYSTER AUTOTOPUP,Not applicable
09/01/17,20.00 ,Travel - Air/Rail/Road,PASSENGER RAILWAYS,ENVIRONMENT AND COMMUNITY SERVICES,OYSTER BUS AUTOTOP,Not applicable
09/01/17,20.00 ,Travel - Air/Rail/Road,PASSENGER RAILWAYS,ENVIRONMENT AND COMMUNITY SERVICES,OYSTER BUS AUTOTOP,Not applicable
09/01/17,15.00 ,Travel - Air/Rail/Road,PASSENGER RAILWAYS,ENVIRONMENT AND COMMUNITY SERVICES,OYSTER ISSUE WEB,Not applicable
09/01/17,20.00 ,Travel - Air/Rail/Road,PASSENGER RAILWAYS,ENVIRONMENT AND COMMUNITY SERVICES,OYSTER BUS AUTOTOP,Not applicable
09/01/17,20.00 ,Travel - Air/Rail/Road,PASSENGER RAILWAYS,ENVIRONMENT AND COMMUNITY SERVICES,OYSTER BUS AUTOTOP,Not applicable
09/01/17,20.00 ,Travel - Air/Rail/Road,PASSENGER RAILWAYS,ENVIRONMENT AND COMMUNITY SERVICES,OYSTER AUTOTOPUP,Not applicable
10/01/17,15.00 ,Travel - Air/Rail/Road,PASSENGER RAILWAYS,ENVIRONMENT AND COMMUNITY SERVICES,OYSTER ISSUE WEB,Not applicable
12/01/17,130.00 ,Travel - Air/Rail/Road,"BRIDGE AND ROAD FEES, TOLLS",ENVIRONMENT AND COMMUNITY SERVICES,TFL ROAD CHARGE,Not applicable
12/01/17,65.00 ,Travel - Air/Rail/Road,"BRIDGE AND ROAD FEES, TOLLS",ENVIRONMENT AND COMMUNITY SERVICES,TFL ROAD CHARGE,Not applicable
13/01/17,20.00 ,Travel - Air/Rail/Road,PASSENGER RAILWAYS,ENVIRONMENT AND COMMUNITY SERVICES,OYSTER BUS AUTOTOP,Not applicable
13/01/17,20.00 ,Travel - Air/Rail/Road,PASSENGER RAILWAYS,ENVIRONMENT AND COMMUNITY SERVICES,OYSTER AUTOTOPUP,Not applicable
13/01/17,20.00 ,Travel - Air/Rail/Road,PASSENGER RAILWAYS,ENVIRONMENT AND COMMUNITY SERVICES,OYSTER AUTOTOPUP,Not applicable
13/01/17,20.00 ,Travel - Air/Rail/Road,PASSENGER RAILWAYS,ENVIRONMENT AND COMMUNITY SERVICES,OYSTER AUTOTOPUP,Not applicable
13/01/17,20.00 ,Travel - Air/Rail/Road,PASSENGER RAILWAYS,ENVIRONMENT AND COMMUNITY SERVICES,OYSTER AUTOTOPUP,Not applicable
13/01/17,65.00 ,Statutory Bodies,GOVERNMENT SERVICES-NOT ELSEWHERE CLASSIFIED,ENVIRONMENT AND COMMUNITY SERVICES,WWW.WANDSWORTH.GOV.UK,Not applicable
16/01/17,20.00 ,Travel - Air/Rail/Road,PASSENGER RAILWAYS,ENVIRONMENT AND COMMUNITY SERVICES,OYSTER BUS AUTOTOP,Not applicable
16/01/17,20.00 ,Travel - Air/Rail/Road,PASSENGER RAILWAYS,ENVIRONMENT AND COMMUNITY SERVICES,OYSTER AUTOTOPUP,Not applicable
16/01/17,20.00 ,Travel - Air/Rail/Road,PASSENGER RAILWAYS,ENVIRONMENT AND COMMUNITY SERVICES,OYSTER AUTOTOPUP,Not applicable
16/01/17,20.00 ,Travel - Air/Rail/Road,PASSENGER RAILWAYS,ENVIRONMENT AND COMMUNITY SERVICES,OYSTER BUS AUTOTOP,Not applicable
16/01/17,20.00 ,Travel - Air/Rail/Road,PASSENGER RAILWAYS,ENVIRONMENT AND COMMUNITY SERVICES,OYSTER AUTOTOPUP,Not applicable
16/01/17,20.00 ,Travel - Air/Rail/Road,PASSENGER RAILWAYS,ENVIRONMENT AND COMMUNITY SERVICES,OYSTER AUTOTOPUP,Not applicable
16/01/17,20.00 ,Travel - Air/Rail/Road,PASSENGER RAILWAYS,ENVIRONMENT AND COMMUNITY SERVICES,OYSTER AUTOTOPUP,Not applicable
16/01/17,20.00 ,Travel - Air/Rail/Road,PASSENGER RAILWAYS,ENVIRONMENT AND COMMUNITY SERVICES,OYSTER BUS AUTOTOP,Not applicable
16/01/17,20.00 ,Travel - Air/Rail/Road,PASSENGER RAILWAYS,ENVIRONMENT AND COMMUNITY SERVICES,OYSTER AUTOTOPUP,Not applicable
16/01/17,20.00 ,Travel - Air/Rail/Road,PASSENGER RAILWAYS,ENVIRONMENT AND COMMUNITY SERVICES,OYSTER BUS AUTOTOP,Not applicable
16/01/17,20.00 ,Travel - Air/Rail/Road,PASSENGER RAILWAYS,ENVIRONMENT AND COMMUNITY SERVICES,OYSTER AUTOTOPUP,Not applicable
17/01/17,195.00 ,Statutory Bodies,GOVERNMENT SERVICES-NOT ELSEWHERE CLASSIFIED,ENVIRONMENT AND COMMUNITY SERVICES,LONDON BOROUGH OF,Not applicable
18/01/17,95.47 ,Freight and Storage,"FREIGHT CARRIER,TRUCKING-LCL/LNG DIST, MVG/STORAGE",ENVIRONMENT AND COMMUNITY SERVICES,FREIGHT PRODUCTS(UK) L,Not applicable
20/01/17,20.00 ,Travel - Air/Rail/Road,PASSENGER RAILWAYS,ENVIRONMENT AND COMMUNITY SERVICES,OYSTER AUTOTOPUP,Not applicable
20/01/17,20.00 ,Travel - Air/Rail/Road,PASSENGER RAILWAYS,ENVIRONMENT AND COMMUNITY SERVICES,OYSTER BUS AUTOTOP,Not applicable
20/01/17,20.00 ,Travel - Air/Rail/Road,PASSENGER RAILWAYS,ENVIRONMENT AND COMMUNITY SERVICES,OYSTER AUTOTOPUP,Not applicable
20/01/17,20.00 ,Travel - Air/Rail/Road,PASSENGER RAILWAYS,ENVIRONMENT AND COMMUNITY SERVICES,OYSTER BUS AUTOTOP,Not applicable
20/01/17,20.00 ,Travel - Air/Rail/Road,PASSENGER RAILWAYS,ENVIRONMENT AND COMMUNITY SERVICES,OYSTER BUS AUTOTOP,Not applicable
20/01/17,65.00 ,Travel - Air/Rail/Road,"BRIDGE AND ROAD FEES, TOLLS",ENVIRONMENT AND COMMUNITY SERVICES,TFL ROAD CHARGE,Not applicable
23/01/17,20.00 ,Travel - Air/Rail/Road,PASSENGER RAILWAYS,ENVIRONMENT AND COMMUNITY SERVICES,OYSTER BUS AUTOTOP,Not applicable
23/01/17,20.00 ,Travel - Air/Rail/Road,PASSENGER RAILWAYS,ENVIRONMENT AND COMMUNITY SERVICES,OYSTER AUTOTOPUP,Not applicable
23/01/17,20.00 ,Travel - Air/Rail/Road,PASSENGER RAILWAYS,ENVIRONMENT AND COMMUNITY SERVICES,OYSTER BUS AUTOTOP,Not applicable
23/01/17,20.00 ,Travel - Air/Rail/Road,PASSENGER RAILWAYS,ENVIRONMENT AND COMMUNITY SERVICES,OYSTER BUS AUTOTOP,Not applicable
23/01/17,20.00 ,Travel - Air/Rail/Road,PASSENGER RAILWAYS,ENVIRONMENT AND COMMUNITY SERVICES,OYSTER BUS AUTOTOP,Not applicable
23/01/17,20.00 ,Travel - Air/Rail/Road,PASSENGER RAILWAYS,ENVIRONMENT AND COMMUNITY SERVICES,OYSTER BUS AUTOTOP,Not applicable
23/01/17,20.00 ,Travel - Air/Rail/Road,PASSENGER RAILWAYS,ENVIRONMENT AND COMMUNITY SERVICES,OYSTER AUTOTOPUP,Not applicable
23/01/17,20.00 ,Travel - Air/Rail/Road,PASSENGER RAILWAYS,ENVIRONMENT AND COMMUNITY SERVICES,OYSTER BUS AUTOTOP,Not applicable
23/01/17,20.00 ,Travel - Air/Rail/Road,PASSENGER RAILWAYS,ENVIRONMENT AND COMMUNITY SERVICES,OYSTER AUTOTOPUP,Not applicable
23/01/17,20.00 ,Travel - Air/Rail/Road,PASSENGER RAILWAYS,ENVIRONMENT AND COMMUNITY SERVICES,OYSTER AUTOTOPUP,Not applicable
23/01/17,20.00 ,Travel - Air/Rail/Road,PASSENGER RAILWAYS,ENVIRONMENT AND COMMUNITY SERVICES,OYSTER BUS AUTOTOP,Not applicable
24/01/17,20.00 ,Travel - Air/Rail/Road,PASSENGER RAILWAYS,ENVIRONMENT AND COMMUNITY SERVICES,OYSTER BUS AUTOTOP,Not applicable
26/01/17,20.00 ,Travel - Air/Rail/Road,PASSENGER RAILWAYS,ENVIRONMENT AND COMMUNITY SERVICES,OYSTER BUS AUTOSET,Not applicable
27/01/17,20.00 ,Travel - Air/Rail/Road,PASSENGER RAILWAYS,ENVIRONMENT AND COMMUNITY SERVICES,OYSTER AUTOTOPUP,Not applicable
27/01/17,20.00 ,Travel - Air/Rail/Road,PASSENGER RAILWAYS,ENVIRONMENT AND COMMUNITY SERVICES,OYSTER AUTOTOPUP,Not applicable
30/01/17,20.00 ,Travel - Air/Rail/Road,PASSENGER RAILWAYS,ENVIRONMENT AND COMMUNITY SERVICES,OYSTER BUS AUTOTOP,Not applicable
30/01/17,20.00 ,Travel - Air/Rail/Road,PASSENGER RAILWAYS,ENVIRONMENT AND COMMUNITY SERVICES,OYSTER BUS AUTOTOP,Not applicable
30/01/17,20.00 ,Travel - Air/Rail/Road,PASSENGER RAILWAYS,ENVIRONMENT AND COMMUNITY SERVICES,OYSTER BUS AUTOTOP,Not applicable
30/01/17,20.00 ,Travel - Air/Rail/Road,PASSENGER RAILWAYS,ENVIRONMENT AND COMMUNITY SERVICES,OYSTER AUTOTOPUP,Not applicable
30/01/17,20.00 ,Travel - Air/Rail/Road,PASSENGER RAILWAYS,ENVIRONMENT AND COMMUNITY SERVICES,OYSTER AUTOTOPUP,Not applicable
30/01/17,20.00 ,Travel - Air/Rail/Road,PASSENGER RAILWAYS,ENVIRONMENT AND COMMUNITY SERVICES,OYSTER AUTOTOPUP,Not applicable
30/01/17,20.00 ,Travel - Air/Rail/Road,PASSENGER RAILWAYS,ENVIRONMENT AND COMMUNITY SERVICES,OYSTER BUS AUTOTOP,Not applicable
30/01/17,20.00 ,Travel - Air/Rail/Road,PASSENGER RAILWAYS,ENVIRONMENT AND COMMUNITY SERVICES,OYSTER BUS AUTOTOP,Not applicable
30/01/17,20.00 ,Travel - Air/Rail/Road,PASSENGER RAILWAYS,ENVIRONMENT AND COMMUNITY SERVICES,OYSTER AUTOTOPUP,Not applicable
30/01/17,20.00 ,Travel - Air/Rail/Road,PASSENGER RAILWAYS,ENVIRONMENT AND COMMUNITY SERVICES,OYSTER AUTOTOPUP,Not applicable
30/01/17,20.00 ,Travel - Air/Rail/Road,PASSENGER RAILWAYS,ENVIRONMENT AND COMMUNITY SERVICES,OYSTER AUTOTOPUP,Not applicable
30/01/17,20.00 ,Travel - Air/Rail/Road,PASSENGER RAILWAYS,ENVIRONMENT AND COMMUNITY SERVICES,OYSTER AUTOTOPUP,Not applicable
30/01/17,20.00 ,Travel - Air/Rail/Road,PASSENGER RAILWAYS,ENVIRONMENT AND COMMUNITY SERVICES,OYSTER BUS AUTOTOP,Not applicable
30/01/17,65.00 ,Statutory Bodies,GOVERNMENT SERVICES-NOT ELSEWHERE CLASSIFIED,ENVIRONMENT AND COMMUNITY SERVICES,LB CROYDON,Not applicable
30/01/17,410.00 ,Statutory Bodies,GOVERNMENT SERVICES-NOT ELSEWHERE CLASSIFIED,ENVIRONMENT AND COMMUNITY SERVICES,DVSA MOT COMP 2,Not applicable
01/02/17,232.50 ,Statutory Bodies,GOVERNMENT SERVICES-NOT ELSEWHERE CLASSIFIED,ENVIRONMENT AND COMMUNITY SERVICES,DVLA VEHICLE TAX,Not applicable
01/02/17,147.50 ,Statutory Bodies,GOVERNMENT SERVICES-NOT ELSEWHERE CLASSIFIED,ENVIRONMENT AND COMMUNITY SERVICES,DVLA VEHICLE TAX,Not applicable
01/02/17,232.50 ,Statutory Bodies,GOVERNMENT SERVICES-NOT ELSEWHERE CLASSIFIED,ENVIRONMENT AND COMMUNITY SERVICES,DVLA VEHICLE TAX,Not applicable
01/02/17,232.50 ,Statutory Bodies,GOVERNMENT SERVICES-NOT ELSEWHERE CLASSIFIED,ENVIRONMENT AND COMMUNITY SERVICES,DVLA VEHICLE TAX,Not applicable
01/02/17,232.50 ,Statutory Bodies,GOVERNMENT SERVICES-NOT ELSEWHERE CLASSIFIED,ENVIRONMENT AND COMMUNITY SERVICES,DVLA VEHICLE TAX,Not applicable
01/02/17,65.00 ,Travel - Air/Rail/Road,"BRIDGE AND ROAD FEES, TOLLS",ENVIRONMENT AND COMMUNITY SERVICES,TFL ROAD CHARGE,Not applicable
02/02/17,20.00 ,Travel - Air/Rail/Road,PASSENGER RAILWAYS,ENVIRONMENT AND COMMUNITY SERVICES,OYSTER BUS AUTOTOP,Not applicable
02/02/17,20.00 ,Travel - Air/Rail/Road,PASSENGER RAILWAYS,ENVIRONMENT AND COMMUNITY SERVICES,OYSTER BUS AUTOTOP,Not applicable
02/02/17,20.00 ,Travel - Air/Rail/Road,PASSENGER RAILWAYS,ENVIRONMENT AND COMMUNITY SERVICES,OYSTER AUTOTOPUP,Not applicable
02/02/17,20.00 ,Travel - Air/Rail/Road,PASSENGER RAILWAYS,ENVIRONMENT AND COMMUNITY SERVICES,OYSTER BUS AUTOTOP,Not applicable
03/02/17,20.00 ,Travel - Air/Rail/Road,PASSENGER RAILWAYS,ENVIRONMENT AND COMMUNITY SERVICES,OYSTER AUTOTOPUP,Not applicable
03/02/17,20.00 ,Travel - Air/Rail/Road,PASSENGER RAILWAYS,ENVIRONMENT AND COMMUNITY SERVICES,OYSTER AUTOTOPUP,Not applicable
06/02/17,20.00 ,Travel - Air/Rail/Road,PASSENGER RAILWAYS,ENVIRONMENT AND COMMUNITY SERVICES,OYSTER AUTOTOPUP,Not applicable
06/02/17,20.00 ,Travel - Air/Rail/Road,PASSENGER RAILWAYS,ENVIRONMENT AND COMMUNITY SERVICES,OYSTER AUTOTOPUP,Not applicable
06/02/17,20.00 ,Travel - Air/Rail/Road,PASSENGER RAILWAYS,ENVIRONMENT AND COMMUNITY SERVICES,OYSTER AUTOTOPUP,Not applicable
06/02/17,20.00 ,Travel - Air/Rail/Road,PASSENGER RAILWAYS,ENVIRONMENT AND COMMUNITY SERVICES,OYSTER BUS AUTOTOP,Not applicable
06/02/17,20.00 ,Travel - Air/Rail/Road,PASSENGER RAILWAYS,ENVIRONMENT AND COMMUNITY SERVICES,OYSTER BUS AUTOTOP,Not applicable
06/02/17,20.00 ,Travel - Air/Rail/Road,PASSENGER RAILWAYS,ENVIRONMENT AND COMMUNITY SERVICES,OYSTER AUTOTOPUP,Not applicable
06/02/17,20.00 ,Travel - Air/Rail/Road,PASSENGER RAILWAYS,ENVIRONMENT AND COMMUNITY SERVICES,OYSTER BUS AUTOTOP,Not applicable
06/02/17,20.00 ,Travel - Air/Rail/Road,PASSENGER RAILWAYS,ENVIRONMENT AND COMMUNITY SERVICES,OYSTER AUTOTOPUP,Not applicable
06/02/17,20.00 ,Travel - Air/Rail/Road,PASSENGER RAILWAYS,ENVIRONMENT AND COMMUNITY SERVICES,OYSTER BUS AUTOTOP,Not applicable
06/02/17,20.00 ,Travel - Air/Rail/Road,PASSENGER RAILWAYS,ENVIRONMENT AND COMMUNITY SERVICES,OYSTER AUTOTOPUP,Not applicable
06/02/17,20.00 ,Travel - Air/Rail/Road,PASSENGER RAILWAYS,ENVIRONMENT AND COMMUNITY SERVICES,OYSTER BUS AUTOTOP,Not applicable
09/02/17,20.00 ,Travel - Air/Rail/Road,PASSENGER RAILWAYS,ENVIRONMENT AND COMMUNITY SERVICES,OYSTER AUTOTOPUP,Not applicable
09/02/17,65.00 ,Statutory Bodies,GOVERNMENT SERVICES-NOT ELSEWHERE CLASSIFIED,ENVIRONMENT AND COMMUNITY SERVICES,WWW.WANDSWORTH.GOV.UK,Not applicable
10/02/17,15.00 ,Travel - Air/Rail/Road,PASSENGER RAILWAYS,ENVIRONMENT AND COMMUNITY SERVICES,OYSTER ISSUE WEB,Not applicable
13/02/17,20.00 ,Travel - Air/Rail/Road,PASSENGER RAILWAYS,ENVIRONMENT AND COMMUNITY SERVICES,OYSTER AUTOTOPUP,Not applicable
13/02/17,20.00 ,Travel - Air/Rail/Road,PASSENGER RAILWAYS,ENVIRONMENT AND COMMUNITY SERVICES,OYSTER BUS AUTOTOP,Not applicable
13/02/17,20.00 ,Travel - Air/Rail/Road,PASSENGER RAILWAYS,ENVIRONMENT AND COMMUNITY SERVICES,OYSTER AUTOTOPUP,Not applicable
13/02/17,20.00 ,Travel - Air/Rail/Road,PASSENGER RAILWAYS,ENVIRONMENT AND COMMUNITY SERVICES,OYSTER AUTOTOPUP,Not applicable
13/02/17,20.00 ,Travel - Air/Rail/Road,PASSENGER RAILWAYS,ENVIRONMENT AND COMMUNITY SERVICES,OYSTER AUTOTOPUP,Not applicable
13/02/17,20.00 ,Travel - Air/Rail/Road,PASSENGER RAILWAYS,ENVIRONMENT AND COMMUNITY SERVICES,OYSTER BUS AUTOTOP,Not applicable
13/02/17,20.00 ,Travel - Air/Rail/Road,PASSENGER RAILWAYS,ENVIRONMENT AND COMMUNITY SERVICES,OYSTER AUTOTOPUP,Not applicable
13/02/17,20.00 ,Travel - Air/Rail/Road,PASSENGER RAILWAYS,ENVIRONMENT AND COMMUNITY SERVICES,OYSTER BUS AUTOTOP,Not applicable
13/02/17,20.00 ,Travel - Air/Rail/Road,PASSENGER RAILWAYS,ENVIRONMENT AND COMMUNITY SERVICES,OYSTER AUTOTOPUP,Not applicable
13/02/17,20.00 ,Travel - Air/Rail/Road,PASSENGER RAILWAYS,ENVIRONMENT AND COMMUNITY SERVICES,OYSTER AUTOTOPUP,Not applicable
13/02/17,20.00 ,Travel - Air/Rail/Road,PASSENGER RAILWAYS,ENVIRONMENT AND COMMUNITY SERVICES,OYSTER AUTOTOPUP,Not applicable
13/02/17,20.00 ,Travel - Air/Rail/Road,PASSENGER RAILWAYS,ENVIRONMENT AND COMMUNITY SERVICES,OYSTER AUTOTOPUP,Not applicable
13/02/17,20.00 ,Travel - Air/Rail/Road,PASSENGER RAILWAYS,ENVIRONMENT AND COMMUNITY SERVICES,OYSTER AUTOTOPUP,Not applicable
13/02/17,20.00 ,Travel - Air/Rail/Road,PASSENGER RAILWAYS,ENVIRONMENT AND COMMUNITY SERVICES,OYSTER AUTOTOPUP,Not applicable
13/02/17,20.00 ,Travel - Air/Rail/Road,PASSENGER RAILWAYS,ENVIRONMENT AND COMMUNITY SERVICES,OYSTER AUTOTOPUP,Not applicable
13/02/17,20.00 ,Travel - Air/Rail/Road,PASSENGER RAILWAYS,ENVIRONMENT AND COMMUNITY SERVICES,OYSTER BUS AUTOTOP,Not applicable
13/02/17,20.00 ,Travel - Air/Rail/Road,PASSENGER RAILWAYS,ENVIRONMENT AND COMMUNITY SERVICES,OYSTER AUTOTOPUP,Not applicable
13/02/17,20.00 ,Travel - Air/Rail/Road,PASSENGER RAILWAYS,ENVIRONMENT AND COMMUNITY SERVICES,OYSTER AUTOTOPUP,Not applicable
13/02/17,65.00 ,Travel - Air/Rail/Road,"BRIDGE AND ROAD FEES, TOLLS",ENVIRONMENT AND COMMUNITY SERVICES,TFL ROAD CHARGE,Not applicable
15/02/17,15.00 ,Travel - Air/Rail/Road,PASSENGER RAILWAYS,ENVIRONMENT AND COMMUNITY SERVICES,OYSTER ISSUE WEB,Not applicable
16/02/17,20.00 ,Travel - Air/Rail/Road,PASSENGER RAILWAYS,ENVIRONMENT AND COMMUNITY SERVICES,OYSTER BUS AUTOTOP,Not applicable
16/02/17,110.00 ,Statutory Bodies,GOVERNMENT SERVICES-NOT ELSEWHERE CLASSIFIED,ENVIRONMENT AND COMMUNITY SERVICES,LONDON BOROUGH OF,Not applicable
17/02/17,20.00 ,Travel - Air/Rail/Road,PASSENGER RAILWAYS,ENVIRONMENT AND COMMUNITY SERVICES,OYSTER BUS AUTOTOP,Not applicable
17/02/17,20.00 ,Travel - Air/Rail/Road,PASSENGER RAILWAYS,ENVIRONMENT AND COMMUNITY SERVICES,OYSTER BUS AUTOTOP,Not applicable
17/02/17,20.00 ,Travel - Air/Rail/Road,PASSENGER RAILWAYS,ENVIRONMENT AND COMMUNITY SERVICES,OYSTER BUS AUTOTOP,Not applicable
17/02/17,20.00 ,Travel - Air/Rail/Road,PASSENGER RAILWAYS,ENVIRONMENT AND COMMUNITY SERVICES,OYSTER BUS AUTOTOP,Not applicable
17/02/17,65.00 ,Travel - Air/Rail/Road,"BRIDGE AND ROAD FEES, TOLLS",ENVIRONMENT AND COMMUNITY SERVICES,TFL ROAD CHARGE,Not applicable
20/02/17,20.00 ,Travel - Air/Rail/Road,PASSENGER RAILWAYS,ENVIRONMENT AND COMMUNITY SERVICES,OYSTER BUS AUTOTOP,Not applicable
20/02/17,20.00 ,Travel - Air/Rail/Road,PASSENGER RAILWAYS,ENVIRONMENT AND COMMUNITY SERVICES,OYSTER BUS AUTOTOP,Not applicable
20/02/17,20.00 ,Travel - Air/Rail/Road,PASSENGER RAILWAYS,ENVIRONMENT AND COMMUNITY SERVICES,OYSTER AUTOTOPUP,Not applicable
20/02/17,20.00 ,Travel - Air/Rail/Road,PASSENGER RAILWAYS,ENVIRONMENT AND COMMUNITY SERVICES,OYSTER BUS AUTOTOP,Not applicable
20/02/17,20.00 ,Travel - Air/Rail/Road,PASSENGER RAILWAYS,ENVIRONMENT AND COMMUNITY SERVICES,OYSTER AUTOTOPUP,Not applicable
20/02/17,20.00 ,Travel - Air/Rail/Road,PASSENGER RAILWAYS,ENVIRONMENT AND COMMUNITY SERVICES,OYSTER BUS AUTOTOP,Not applicable
23/02/17,20.00 ,Travel - Air/Rail/Road,PASSENGER RAILWAYS,ENVIRONMENT AND COMMUNITY SERVICES,OYSTER AUTOTOPUP,Not applicable
23/02/17,20.00 ,Travel - Air/Rail/Road,PASSENGER RAILWAYS,ENVIRONMENT AND COMMUNITY SERVICES,OYSTER AUTOTOPUP,Not applicable
23/02/17,20.00 ,Travel - Air/Rail/Road,PASSENGER RAILWAYS,ENVIRONMENT AND COMMUNITY SERVICES,OYSTER AUTOTOPUP,Not applicable
23/02/17,20.00 ,Travel - Air/Rail/Road,PASSENGER RAILWAYS,ENVIRONMENT AND COMMUNITY SERVICES,OYSTER AUTOTOPUP,Not applicable
23/02/17,20.00 ,Travel - Air/Rail/Road,PASSENGER RAILWAYS,ENVIRONMENT AND COMMUNITY SERVICES,OYSTER AUTOTOPUP,Not applicable
24/02/17,20.00 ,Travel - Air/Rail/Road,PASSENGER RAILWAYS,ENVIRONMENT AND COMMUNITY SERVICES,OYSTER AUTOTOPUP,Not applicable
24/02/17,20.00 ,Travel - Air/Rail/Road,PASSENGER RAILWAYS,ENVIRONMENT AND COMMUNITY SERVICES,OYSTER BUS AUTOTOP,Not applicable
24/02/17,20.00 ,Travel - Air/Rail/Road,PASSENGER RAILWAYS,ENVIRONMENT AND COMMUNITY SERVICES,OYSTER AUTOTOPUP,Not applicable
24/02/17,20.00 ,Travel - Air/Rail/Road,PASSENGER RAILWAYS,ENVIRONMENT AND COMMUNITY SERVICES,OYSTER AUTOTOPUP,Not applicable
24/02/17,20.00 ,Travel - Air/Rail/Road,PASSENGER RAILWAYS,ENVIRONMENT AND COMMUNITY SERVICES,OYSTER BUS AUTOTOP,Not applicable
27/02/17,20.00 ,Travel - Air/Rail/Road,PASSENGER RAILWAYS,ENVIRONMENT AND COMMUNITY SERVICES,OYSTER AUTOTOPUP,Not applicable
27/02/17,20.00 ,Travel - Air/Rail/Road,PASSENGER RAILWAYS,ENVIRONMENT AND COMMUNITY SERVICES,OYSTER BUS AUTOTOP,Not applicable
27/02/17,20.00 ,Travel - Air/Rail/Road,PASSENGER RAILWAYS,ENVIRONMENT AND COMMUNITY SERVICES,OYSTER BUS AUTOTOP,Not applicable
27/02/17,20.00 ,Travel - Air/Rail/Road,PASSENGER RAILWAYS,ENVIRONMENT AND COMMUNITY SERVICES,OYSTER AUTOTOPUP,Not applicable
27/02/17,20.00 ,Travel - Air/Rail/Road,PASSENGER RAILWAYS,ENVIRONMENT AND COMMUNITY SERVICES,OYSTER AUTOTOPUP,Not applicable
27/02/17,20.00 ,Travel - Air/Rail/Road,PASSENGER RAILWAYS,ENVIRONMENT AND COMMUNITY SERVICES,OYSTER AUTOTOPUP,Not applicable
27/02/17,20.00 ,Travel - Air/Rail/Road,PASSENGER RAILWAYS,ENVIRONMENT AND COMMUNITY SERVICES,OYSTER AUTOTOPUP,Not applicable
27/02/17,20.00 ,Travel - Air/Rail/Road,PASSENGER RAILWAYS,ENVIRONMENT AND COMMUNITY SERVICES,OYSTER BUS AUTOTOP,Not applicable
27/02/17,20.00 ,Travel - Air/Rail/Road,PASSENGER RAILWAYS,ENVIRONMENT AND COMMUNITY SERVICES,OYSTER BUS AUTOTOP,Not applicable
27/02/17,20.00 ,Travel - Air/Rail/Road,PASSENGER RAILWAYS,ENVIRONMENT AND COMMUNITY SERVICES,OYSTER AUTOTOPUP,Not applicable
01/03/17,232.50 ,Statutory Bodies,GOVERNMENT SERVICES-NOT ELSEWHERE CLASSIFIED,ENVIRONMENT AND COMMUNITY SERVICES,DVLA VEHICLE TAX,Not applicable
01/03/17,1202.50 ,Statutory Bodies,GOVERNMENT SERVICES-NOT ELSEWHERE CLASSIFIED,ENVIRONMENT AND COMMUNITY SERVICES,DVLA VEHICLE TAX,Not applicable
01/03/17,232.50 ,Statutory Bodies,GOVERNMENT SERVICES-NOT ELSEWHERE CLASSIFIED,ENVIRONMENT AND COMMUNITY SERVICES,DVLA VEHICLE TAX,Not applicable
01/03/17,232.50 ,Statutory Bodies,GOVERNMENT SERVICES-NOT ELSEWHERE CLASSIFIED,ENVIRONMENT AND COMMUNITY SERVICES,DVLA VEHICLE TAX,Not applicable
01/03/17,212.50 ,Statutory Bodies,GOVERNMENT SERVICES-NOT ELSEWHERE CLASSIFIED,ENVIRONMENT AND COMMUNITY SERVICES,DVLA VEHICLE TAX,Not applicable
01/03/17,132.50 ,Statutory Bodies,GOVERNMENT SERVICES-NOT ELSEWHERE CLASSIFIED,ENVIRONMENT AND COMMUNITY SERVICES,DVLA VEHICLE TAX,Not applicable
01/03/17,132.50 ,Statutory Bodies,GOVERNMENT SERVICES-NOT ELSEWHERE CLASSIFIED,ENVIRONMENT AND COMMUNITY SERVICES,DVLA VEHICLE TAX,Not applicable
02/03/17,20.00 ,Travel - Air/Rail/Road,PASSENGER RAILWAYS,ENVIRONMENT AND COMMUNITY SERVICES,OYSTER BUS AUTOTOP,Not applicable
02/03/17,20.00 ,Travel - Air/Rail/Road,PASSENGER RAILWAYS,ENVIRONMENT AND COMMUNITY SERVICES,OYSTER BUS AUTOTOP,Not applicable
03/03/17,20.00 ,Travel - Air/Rail/Road,PASSENGER RAILWAYS,ENVIRONMENT AND COMMUNITY SERVICES,OYSTER AUTOTOPUP,Not applicable
03/03/17,20.00 ,Travel - Air/Rail/Road,PASSENGER RAILWAYS,ENVIRONMENT AND COMMUNITY SERVICES,OYSTER AUTOTOPUP,Not applicable
03/03/17,20.00 ,Travel - Air/Rail/Road,PASSENGER RAILWAYS,ENVIRONMENT AND COMMUNITY SERVICES,OYSTER BUS AUTOTOP,Not applicable
06/03/17,20.00 ,Travel - Air/Rail/Road,PASSENGER RAILWAYS,ENVIRONMENT AND COMMUNITY SERVICES,OYSTER AUTOTOPUP,Not applicable
06/03/17,20.00 ,Travel - Air/Rail/Road,PASSENGER RAILWAYS,ENVIRONMENT AND COMMUNITY SERVICES,OYSTER AUTOTOPUP,Not applicable
06/03/17,20.00 ,Travel - Air/Rail/Road,PASSENGER RAILWAYS,ENVIRONMENT AND COMMUNITY SERVICES,OYSTER BUS AUTOTOP,Not applicable
06/03/17,20.00 ,Travel - Air/Rail/Road,PASSENGER RAILWAYS,ENVIRONMENT AND COMMUNITY SERVICES,OYSTER AUTOTOPUP,Not applicable
06/03/17,20.00 ,Travel - Air/Rail/Road,PASSENGER RAILWAYS,ENVIRONMENT AND COMMUNITY SERVICES,OYSTER BUS AUTOTOP,Not applicable
07/03/17,65.00 ,Travel - Air/Rail/Road,"BRIDGE AND ROAD FEES, TOLLS",ENVIRONMENT AND COMMUNITY SERVICES,TFL ROAD CHARGE,Not applicable
08/03/17,65.00 ,Statutory Bodies,GOVERNMENT SERVICES-NOT ELSEWHERE CLASSIFIED,ENVIRONMENT AND COMMUNITY SERVICES,LONDON BOROUGH OF,Not applicable
08/03/17,55.00 ,Statutory Bodies,GOVERNMENT SERVICES-NOT ELSEWHERE CLASSIFIED,ENVIRONMENT AND COMMUNITY SERVICES,WWW.WANDSWORTH.GOV.UK,Not applicable
09/03/17,20.00 ,Travel - Air/Rail/Road,PASSENGER RAILWAYS,ENVIRONMENT AND COMMUNITY SERVICES,OYSTER BUS AUTOTOP,Not applicable
09/03/17,20.00 ,Travel - Air/Rail/Road,PASSENGER RAILWAYS,ENVIRONMENT AND COMMUNITY SERVICES,OYSTER AUTOTOPUP,Not applicable
09/03/17,20.00 ,Travel - Air/Rail/Road,PASSENGER RAILWAYS,ENVIRONMENT AND COMMUNITY SERVICES,OYSTER BUS AUTOTOP,Not applicable
09/03/17,20.00 ,Travel - Air/Rail/Road,PASSENGER RAILWAYS,ENVIRONMENT AND COMMUNITY SERVICES,OYSTER BUS AUTOTOP,Not applicable
09/03/17,20.00 ,Travel - Air/Rail/Road,PASSENGER RAILWAYS,ENVIRONMENT AND COMMUNITY SERVICES,OYSTER BUS AUTOTOP,Not applicable
09/03/17,307.50 ,Statutory Bodies,GOVERNMENT SERVICES-NOT ELSEWHERE CLASSIFIED,ENVIRONMENT AND COMMUNITY SERVICES,DVSA MOT COMP 2,Not applicable
10/03/17,20.00 ,Travel - Air/Rail/Road,PASSENGER RAILWAYS,ENVIRONMENT AND COMMUNITY SERVICES,OYSTER AUTOTOPUP,Not applicable
10/03/17,20.00 ,Travel - Air/Rail/Road,PASSENGER RAILWAYS,ENVIRONMENT AND COMMUNITY SERVICES,OYSTER AUTOTOPUP,Not applicable
10/03/17,20.00 ,Travel - Air/Rail/Road,PASSENGER RAILWAYS,ENVIRONMENT AND COMMUNITY SERVICES,OYSTER BUS AUTOTOP,Not applicable
10/03/17,20.00 ,Travel - Air/Rail/Road,PASSENGER RAILWAYS,ENVIRONMENT AND COMMUNITY SERVICES,OYSTER BUS AUTOTOP,Not applicable
10/03/17,20.00 ,Travel - Air/Rail/Road,PASSENGER RAILWAYS,ENVIRONMENT AND COMMUNITY SERVICES,OYSTER AUTOTOPUP,Not applicable
10/03/17,20.00 ,Travel - Air/Rail/Road,PASSENGER RAILWAYS,ENVIRONMENT AND COMMUNITY SERVICES,OYSTER BUS AUTOTOP,Not applicable
10/03/17,65.00 ,Travel - Air/Rail/Road,"BRIDGE AND ROAD FEES, TOLLS",ENVIRONMENT AND COMMUNITY SERVICES,TFL ROAD CHARGE,Not applicable
13/03/17,20.00 ,Travel - Air/Rail/Road,PASSENGER RAILWAYS,ENVIRONMENT AND COMMUNITY SERVICES,OYSTER BUS AUTOTOP,Not applicable
13/03/17,20.00 ,Travel - Air/Rail/Road,PASSENGER RAILWAYS,ENVIRONMENT AND COMMUNITY SERVICES,OYSTER BUS AUTOTOP,Not applicable
13/03/17,20.00 ,Travel - Air/Rail/Road,PASSENGER RAILWAYS,ENVIRONMENT AND COMMUNITY SERVICES,OYSTER AUTOTOPUP,Not applicable
13/03/17,20.00 ,Travel - Air/Rail/Road,PASSENGER RAILWAYS,ENVIRONMENT AND COMMUNITY SERVICES,OYSTER AUTOTOPUP,Not applicable
13/03/17,20.00 ,Travel - Air/Rail/Road,PASSENGER RAILWAYS,ENVIRONMENT AND COMMUNITY SERVICES,OYSTER AUTOTOPUP,Not applicable
13/03/17,20.00 ,Travel - Air/Rail/Road,PASSENGER RAILWAYS,ENVIRONMENT AND COMMUNITY SERVICES,OYSTER BUS AUTOTOP,Not applicable
13/03/17,20.00 ,Travel - Air/Rail/Road,PASSENGER RAILWAYS,ENVIRONMENT AND COMMUNITY SERVICES,OYSTER AUTOTOPUP,Not applicable
13/03/17,20.00 ,Travel - Air/Rail/Road,PASSENGER RAILWAYS,ENVIRONMENT AND COMMUNITY SERVICES,OYSTER BUS AUTOTOP,Not applicable
13/03/17,20.00 ,Travel - Air/Rail/Road,PASSENGER RAILWAYS,ENVIRONMENT AND COMMUNITY SERVICES,OYSTER AUTOTOPUP,Not applicable
13/03/17,20.00 ,Travel - Air/Rail/Road,PASSENGER RAILWAYS,ENVIRONMENT AND COMMUNITY SERVICES,OYSTER BUS AUTOTOP,Not applicable
14/03/17,65.00 ,Statutory Bodies,GOVERNMENT SERVICES-NOT ELSEWHERE CLASSIFIED,ENVIRONMENT AND COMMUNITY SERVICES,LONDON BOROUGH OF,Not applicable
16/03/17,20.00 ,Travel - Air/Rail/Road,PASSENGER RAILWAYS,ENVIRONMENT AND COMMUNITY SERVICES,OYSTER AUTOTOPUP,Not applicable
16/03/17,20.00 ,Travel - Air/Rail/Road,PASSENGER RAILWAYS,ENVIRONMENT AND COMMUNITY SERVICES,OYSTER AUTOTOPUP,Not applicable
16/03/17,55.00 ,Statutory Bodies,GOVERNMENT SERVICES-NOT ELSEWHERE CLASSIFIED,ENVIRONMENT AND COMMUNITY SERVICES,WWW.WANDSWORTH.GOV.UK,Not applicable
17/03/17,20.00 ,Travel - Air/Rail/Road,PASSENGER RAILWAYS,ENVIRONMENT AND COMMUNITY SERVICES,OYSTER BUS AUTOTOP,Not applicable
17/03/17,20.00 ,Travel - Air/Rail/Road,PASSENGER RAILWAYS,ENVIRONMENT AND COMMUNITY SERVICES,OYSTER AUTOTOPUP,Not applicable
17/03/17,20.00 ,Travel - Air/Rail/Road,PASSENGER RAILWAYS,ENVIRONMENT AND COMMUNITY SERVICES,OYSTER AUTOTOPUP,Not applicable
20/03/17,20.00 ,Travel - Air/Rail/Road,PASSENGER RAILWAYS,ENVIRONMENT AND COMMUNITY SERVICES,OYSTER BUS AUTOTOP,Not applicable
20/03/17,20.00 ,Travel - Air/Rail/Road,PASSENGER RAILWAYS,ENVIRONMENT AND COMMUNITY SERVICES,OYSTER BUS AUTOTOP,Not applicable
20/03/17,20.00 ,Travel - Air/Rail/Road,PASSENGER RAILWAYS,ENVIRONMENT AND COMMUNITY SERVICES,OYSTER AUTOTOPUP,Not applicable
20/03/17,20.00 ,Travel - Air/Rail/Road,PASSENGER RAILWAYS,ENVIRONMENT AND COMMUNITY SERVICES,OYSTER BUS AUTOTOP,Not applicable
20/03/17,20.00 ,Travel - Air/Rail/Road,PASSENGER RAILWAYS,ENVIRONMENT AND COMMUNITY SERVICES,OYSTER AUTOTOPUP,Not applicable
20/03/17,20.00 ,Travel - Air/Rail/Road,PASSENGER RAILWAYS,ENVIRONMENT AND COMMUNITY SERVICES,OYSTER BUS AUTOTOP,Not applicable
20/03/17,20.00 ,Travel - Air/Rail/Road,PASSENGER RAILWAYS,ENVIRONMENT AND COMMUNITY SERVICES,OYSTER BUS AUTOTOP,Not applicable
20/03/17,20.00 ,Travel - Air/Rail/Road,PASSENGER RAILWAYS,ENVIRONMENT AND COMMUNITY SERVICES,OYSTER BUS AUTOTOP,Not applicable
20/03/17,20.00 ,Travel - Air/Rail/Road,PASSENGER RAILWAYS,ENVIRONMENT AND COMMUNITY SERVICES,OYSTER BUS AUTOTOP,Not applicable
20/03/17,20.00 ,Travel - Air/Rail/Road,PASSENGER RAILWAYS,ENVIRONMENT AND COMMUNITY SERVICES,OYSTER BUS AUTOTOP,Not applicable
24/03/17,20.00 ,Travel - Air/Rail/Road,PASSENGER RAILWAYS,ENVIRONMENT AND COMMUNITY SERVICES,OYSTER BUS AUTOTOP,Not applicable
24/03/17,20.00 ,Travel - Air/Rail/Road,PASSENGER RAILWAYS,ENVIRONMENT AND COMMUNITY SERVICES,OYSTER AUTOTOPUP,Not applicable
24/03/17,20.00 ,Travel - Air/Rail/Road,PASSENGER RAILWAYS,ENVIRONMENT AND COMMUNITY SERVICES,OYSTER AUTOTOPUP,Not applicable
24/03/17,20.00 ,Travel - Air/Rail/Road,PASSENGER RAILWAYS,ENVIRONMENT AND COMMUNITY SERVICES,OYSTER BUS AUTOTOP,Not applicable
24/03/17,20.00 ,Travel - Air/Rail/Road,PASSENGER RAILWAYS,ENVIRONMENT AND COMMUNITY SERVICES,OYSTER BUS AUTOTOP,Not applicable
24/03/17,20.00 ,Travel - Air/Rail/Road,PASSENGER RAILWAYS,ENVIRONMENT AND COMMUNITY SERVICES,OYSTER BUS AUTOTOP,Not applicable
27/03/17,20.00 ,Travel - Air/Rail/Road,PASSENGER RAILWAYS,ENVIRONMENT AND COMMUNITY SERVICES,OYSTER AUTOTOPUP,Not applicable
27/03/17,20.00 ,Travel - Air/Rail/Road,PASSENGER RAILWAYS,ENVIRONMENT AND COMMUNITY SERVICES,OYSTER BUS AUTOTOP,Not applicable
27/03/17,20.00 ,Travel - Air/Rail/Road,PASSENGER RAILWAYS,ENVIRONMENT AND COMMUNITY SERVICES,OYSTER BUS AUTOTOP,Not applicable
27/03/17,20.00 ,Travel - Air/Rail/Road,PASSENGER RAILWAYS,ENVIRONMENT AND COMMUNITY SERVICES,OYSTER AUTOTOPUP,Not applicable
27/03/17,20.00 ,Travel - Air/Rail/Road,PASSENGER RAILWAYS,ENVIRONMENT AND COMMUNITY SERVICES,OYSTER BUS AUTOTOP,Not applicable
28/03/17,20.00 ,Travel - Air/Rail/Road,PASSENGER RAILWAYS,ENVIRONMENT AND COMMUNITY SERVICES,OYSTER AUTOTOPUP,Not applicable
28/03/17,20.00 ,Travel - Air/Rail/Road,PASSENGER RAILWAYS,ENVIRONMENT AND COMMUNITY SERVICES,OYSTER AUTOTOPUP,Not applicable
28/03/17,20.00 ,Travel - Air/Rail/Road,PASSENGER RAILWAYS,ENVIRONMENT AND COMMUNITY SERVICES,OYSTER AUTOTOPUP,Not applicable
28/03/17,20.00 ,Travel - Air/Rail/Road,PASSENGER RAILWAYS,ENVIRONMENT AND COMMUNITY SERVICES,OYSTER BUS AUTOTOP,Not applicable
28/03/17,20.00 ,Travel - Air/Rail/Road,PASSENGER RAILWAYS,ENVIRONMENT AND COMMUNITY SERVICES,OYSTER BUS AUTOTOP,Not applicable
28/03/17,20.00 ,Travel - Air/Rail/Road,PASSENGER RAILWAYS,ENVIRONMENT AND COMMUNITY SERVICES,OYSTER AUTOTOPUP,Not applicable
30/03/17,20.00 ,Travel - Air/Rail/Road,PASSENGER RAILWAYS,ENVIRONMENT AND COMMUNITY SERVICES,OYSTER BUS AUTOTOP,Not applicable
30/03/17,20.00 ,Travel - Air/Rail/Road,PASSENGER RAILWAYS,ENVIRONMENT AND COMMUNITY SERVICES,OYSTER AUTOTOPUP,Not applicable
31/03/17,20.00 ,Travel - Air/Rail/Road,PASSENGER RAILWAYS,ENVIRONMENT AND COMMUNITY SERVICES,OYSTER AUTOSETTLE,Not applicable
31/03/17,20.00 ,Travel - Air/Rail/Road,PASSENGER RAILWAYS,ENVIRONMENT AND COMMUNITY SERVICES,OYSTER BUS AUTOTOP,Not applicable
31/03/17,20.00 ,Travel - Air/Rail/Road,PASSENGER RAILWAYS,ENVIRONMENT AND COMMUNITY SERVICES,OYSTER BUS AUTOTOP,Not applicable
31/03/17,20.00 ,Travel - Air/Rail/Road,PASSENGER RAILWAYS,ENVIRONMENT AND COMMUNITY SERVICES,OYSTER AUTOTOPUP,Not applicable
31/03/17,20.00 ,Travel - Air/Rail/Road,PASSENGER RAILWAYS,ENVIRONMENT AND COMMUNITY SERVICES,OYSTER AUTOTOPUP,Not applicable
31/03/17,20.00 ,Travel - Air/Rail/Road,PASSENGER RAILWAYS,ENVIRONMENT AND COMMUNITY SERVICES,OYSTER AUTOTOPUP,Not applicable
09/01/17,20.00 ,Travel - Air/Rail/Road,PASSENGER RAILWAYS,HOUSING AND REGENERATION,OYSTER BUS AUTOTOP,Not applicable
09/01/17,20.00 ,Travel - Air/Rail/Road,PASSENGER RAILWAYS,HOUSING AND REGENERATION,OYSTER AUTOTOPUP,Not applicable
13/01/17,20.00 ,Travel - Air/Rail/Road,PASSENGER RAILWAYS,HOUSING AND REGENERATION,OYSTER BUS AUTOTOP,Not applicable
13/01/17,20.00 ,Travel - Air/Rail/Road,PASSENGER RAILWAYS,HOUSING AND REGENERATION,OYSTER AUTOTOPUP,Not applicable
16/01/17,724.00 ,Hotels and Accommodation,PREMIER INN,HOUSING AND REGENERATION,PREMIER INN 44534170,Not applicable
16/01/17,20.00 ,Travel - Air/Rail/Road,PASSENGER RAILWAYS,HOUSING AND REGENERATION,OYSTER AUTOTOPUP,Not applicable
16/01/17,20.00 ,Travel - Air/Rail/Road,PASSENGER RAILWAYS,HOUSING AND REGENERATION,OYSTER AUTOTOPUP,Not applicable
16/01/17,20.00 ,Travel - Air/Rail/Road,PASSENGER RAILWAYS,HOUSING AND REGENERATION,OYSTER AUTOTOPUP,Not applicable
16/01/17,169.80 ,Hotels and Accommodation,TRAVELODGE,HOUSING AND REGENERATION,EMERGENCY ACCOMMODATION,Not applicable
19/01/17,20.00 ,Travel - Air/Rail/Road,PASSENGER RAILWAYS,HOUSING AND REGENERATION,OYSTER AUTOTOPUP,Not applicable
19/01/17,20.00 ,Travel - Air/Rail/Road,PASSENGER RAILWAYS,HOUSING AND REGENERATION,OYSTER BUS AUTOTOP,Not applicable
19/01/17,20.00 ,Travel - Air/Rail/Road,PASSENGER RAILWAYS,HOUSING AND REGENERATION,OYSTER AUTOTOPUP,Not applicable
20/01/17,20.00 ,Travel - Air/Rail/Road,PASSENGER RAILWAYS,HOUSING AND REGENERATION,OYSTER BUS AUTOTOP,Not applicable
20/01/17,20.00 ,Travel - Air/Rail/Road,PASSENGER RAILWAYS,HOUSING AND REGENERATION,OYSTER AUTOTOPUP,Not applicable
20/01/17,20.00 ,Travel - Air/Rail/Road,PASSENGER RAILWAYS,HOUSING AND REGENERATION,OYSTER BUS AUTOTOP,Not applicable
20/01/17,43.98 ,General Retail and Wholesale,HARDWARE STORES,HOUSING AND REGENERATION,ROBERT DYAS HOLDNG LTD,Not applicable
23/01/17,114.00 ,Hotels and Accommodation,PREMIER INN,HOUSING AND REGENERATION,PREMIER INN 44534170,Not applicable
23/01/17,93.00 ,Hotels and Accommodation,PREMIER INN,HOUSING AND REGENERATION,PREMIER INN 44534170,Not applicable
23/01/17,20.00 ,Travel - Air/Rail/Road,PASSENGER RAILWAYS,HOUSING AND REGENERATION,OYSTER AUTOTOPUP,Not applicable
23/01/17,20.00 ,Travel - Air/Rail/Road,PASSENGER RAILWAYS,HOUSING AND REGENERATION,OYSTER BUS AUTOTOP,Not applicable
23/01/17,20.00 ,Travel - Air/Rail/Road,PASSENGER RAILWAYS,HOUSING AND REGENERATION,OYSTER BUS AUTOTOP,Not applicable
23/01/17,193.85 ,Hotels and Accommodation,TRAVELODGE,HOUSING AND REGENERATION,EMERGENCY ACCOMMODATION,Not applicable
24/01/17,85.00 ,Hotels and Accommodation,PREMIER INN,HOUSING AND REGENERATION,PREMIER INN 44534170,Not applicable
25/01/17,959.00 ,Hotels and Accommodation,PREMIER INN,HOUSING AND REGENERATION,PREMIER INN 44534170,Not applicable
26/01/17,20.00 ,Travel - Air/Rail/Road,PASSENGER RAILWAYS,HOUSING AND REGENERATION,OYSTER AUTOTOPUP,Not applicable
27/01/17,20.00 ,Travel - Air/Rail/Road,PASSENGER RAILWAYS,HOUSING AND REGENERATION,OYSTER AUTOTOPUP,Not applicable
30/01/17,20.00 ,Travel - Air/Rail/Road,PASSENGER RAILWAYS,HOUSING AND REGENERATION,OYSTER AUTOTOPUP,Not applicable
30/01/17,20.00 ,Travel - Air/Rail/Road,PASSENGER RAILWAYS,HOUSING AND REGENERATION,OYSTER BUS AUTOTOP,Not applicable
30/01/17,20.00 ,Travel - Air/Rail/Road,PASSENGER RAILWAYS,HOUSING AND REGENERATION,OYSTER BUS AUTOTOP,Not applicable
01/02/17,95.90 ,Hotels and Accommodation,TRAVELODGE,HOUSING AND REGENERATION,EMERGENCY ACCOMMODATION,Not applicable
02/02/17,20.00 ,Travel - Air/Rail/Road,PASSENGER RAILWAYS,HOUSING AND REGENERATION,OYSTER BUS AUTOTOP,Not applicable
06/02/17,720.00 ,Hotels and Accommodation,PREMIER INN,HOUSING AND REGENERATION,PREMIER INN 44534170,Not applicable
06/02/17,20.00 ,Travel - Air/Rail/Road,PASSENGER RAILWAYS,HOUSING AND REGENERATION,OYSTER BUS AUTOTOP,Not applicable
06/02/17,20.00 ,Travel - Air/Rail/Road,PASSENGER RAILWAYS,HOUSING AND REGENERATION,OYSTER BUS AUTOTOP,Not applicable
06/02/17,20.00 ,Travel - Air/Rail/Road,PASSENGER RAILWAYS,HOUSING AND REGENERATION,OYSTER AUTOTOPUP,Not applicable
06/02/17,20.00 ,Travel - Air/Rail/Road,PASSENGER RAILWAYS,HOUSING AND REGENERATION,OYSTER AUTOTOPUP,Not applicable
06/02/17,20.00 ,Travel - Air/Rail/Road,PASSENGER RAILWAYS,HOUSING AND REGENERATION,OYSTER AUTOTOPUP,Not applicable
06/02/17,55.95 ,Hotels and Accommodation,TRAVELODGE,HOUSING AND REGENERATION,EMERGENCY ACCOMMODATION,Not applicable
06/02/17,55.85 ,Hotels and Accommodation,TRAVELODGE,HOUSING AND REGENERATION,EMERGENCY ACCOMMODATION,Not applicable
07/02/17,206.15 ,Hotels and Accommodation,TRAVELODGE,HOUSING AND REGENERATION,EMERGENCY ACCOMMODATION,Not applicable
07/02/17,304.95 ,Hotels and Accommodation,TRAVELODGE,HOUSING AND REGENERATION,EMERGENCY ACCOMMODATION,Not applicable
08/02/17,369.20 ,Hotels and Accommodation,TRAVELODGE,HOUSING AND REGENERATION,EMERGENCY ACCOMMODATION,Not applicable
08/02/17,-206.15 ,Hotels and Accommodation,TRAVELODGE,HOUSING AND REGENERATION,EMERGENCY ACCOMMODATION,Not applicable
09/02/17,35.00 ,General Retail and Wholesale,HOUSEHOLD APPLIANCE STORES,HOUSING AND REGENERATION,WILKO.COM,Not applicable
10/02/17,20.00 ,Travel - Air/Rail/Road,PASSENGER RAILWAYS,HOUSING AND REGENERATION,OYSTER BUS AUTOTOP,Not applicable
10/02/17,-10.00 ,General Retail and Wholesale,HOUSEHOLD APPLIANCE STORES,HOUSING AND REGENERATION,WILKO.COM,Not applicable
13/02/17,1423.00 ,Hotels and Accommodation,PREMIER INN,HOUSING AND REGENERATION,PREMIER INN 44534170,Not applicable
13/02/17,20.00 ,Hotels and Accommodation,PREMIER INN,HOUSING AND REGENERATION,OYSTER AUTOTOPUP,Not applicable
13/02/17,20.00 ,Hotels and Accommodation,PREMIER INN,HOUSING AND REGENERATION,OYSTER AUTOTOPUP,Not applicable
13/02/17,20.00 ,Hotels and Accommodation,PREMIER INN,HOUSING AND REGENERATION,OYSTER BUS AUTOTOP,Not applicable
13/02/17,20.00 ,Hotels and Accommodation,PREMIER INN,HOUSING AND REGENERATION,OYSTER AUTOTOPUP,Not applicable
14/02/17,20.00 ,Hotels and Accommodation,PREMIER INN,HOUSING AND REGENERATION,OYSTER BUS AUTOTOP,Not applicable
14/02/17,-244.15 ,Hotels and Accommodation,PREMIER INN,HOUSING AND REGENERATION,EMERGENCY ACCOMMODATION,Not applicable
17/02/17,20.00 ,Hotels and Accommodation,PREMIER INN,HOUSING AND REGENERATION,OYSTER AUTOTOPUP,Not applicable
17/02/17,20.00 ,Hotels and Accommodation,PREMIER INN,HOUSING AND REGENERATION,OYSTER BUS AUTOTOP,Not applicable
20/02/17,20.00 ,Hotels and Accommodation,PREMIER INN,HOUSING AND REGENERATION,OYSTER AUTOTOPUP,Not applicable
20/02/17,20.00 ,Hotels and Accommodation,PREMIER INN,HOUSING AND REGENERATION,OYSTER AUTOTOPUP,Not applicable
20/02/17,20.00 ,Hotels and Accommodation,PREMIER INN,HOUSING AND REGENERATION,OYSTER BUS AUTOTOP,Not applicable
23/02/17,909.15 ,Hotels and Accommodation,PREMIER INN,HOUSING AND REGENERATION,EMERGENCY ACCOMMODATION,Not applicable
23/02/17,20.00 ,Hotels and Accommodation,PREMIER INN,HOUSING AND REGENERATION,OYSTER AUTOTOPUP,Not applicable
24/02/17,20.00 ,Hotels and Accommodation,PREMIER INN,HOUSING AND REGENERATION,OYSTER AUTOTOPUP,Not applicable
27/02/17,2249.00 ,Hotels and Accommodation,PREMIER INN,HOUSING AND REGENERATION,PREMIER INN 44534170,Not applicable
27/02/17,20.00 ,Travel - Air/Rail/Road,PASSENGER RAILWAYS,HOUSING AND REGENERATION,OYSTER AUTOTOPUP,Not applicable
27/02/17,20.00 ,Travel - Air/Rail/Road,PASSENGER RAILWAYS,HOUSING AND REGENERATION,OYSTER AUTOTOPUP,Not applicable
27/02/17,20.00 ,Travel - Air/Rail/Road,PASSENGER RAILWAYS,HOUSING AND REGENERATION,OYSTER AUTOTOPUP,Not applicable
27/02/17,20.00 ,Travel - Air/Rail/Road,PASSENGER RAILWAYS,HOUSING AND REGENERATION,OYSTER BUS AUTOTOP,Not applicable
02/03/17,149.97 ,Building Materials,"BUILDING MATERIALS, LUMBER STORES",HOUSING AND REGENERATION,SCREWFIX DIRECT,Not applicable
06/03/17,20.00 ,Travel - Air/Rail/Road,PASSENGER RAILWAYS,HOUSING AND REGENERATION,OYSTER AUTOTOPUP,Not applicable
06/03/17,20.00 ,Travel - Air/Rail/Road,PASSENGER RAILWAYS,HOUSING AND REGENERATION,OYSTER AUTOTOPUP,Not applicable
09/03/17,94.50 ,Estate and Garden Services,LAWN AND GARDEN SUPPLY STORES,HOUSING AND REGENERATION,WWW.MEADOWMANIA.CO.UK,Not applicable
10/03/17,20.00 ,Travel - Air/Rail/Road,PASSENGER RAILWAYS,HOUSING AND REGENERATION,OYSTER AUTOTOPUP,Not applicable
10/03/17,20.00 ,Travel - Air/Rail/Road,PASSENGER RAILWAYS,HOUSING AND REGENERATION,OYSTER AUTOTOPUP,Not applicable
10/03/17,20.00 ,Travel - Air/Rail/Road,PASSENGER RAILWAYS,HOUSING AND REGENERATION,OYSTER BUS AUTOTOP,Not applicable
10/03/17,100.95 ,Hotels and Accommodation,TRAVELODGE,HOUSING AND REGENERATION,EMERGENCY ACCOMMODATION,Not applicable
13/03/17,20.00 ,Travel - Air/Rail/Road,PASSENGER RAILWAYS,HOUSING AND REGENERATION,OYSTER AUTOTOPUP,Not applicable
13/03/17,20.00 ,Travel - Air/Rail/Road,PASSENGER RAILWAYS,HOUSING AND REGENERATION,OYSTER BUS AUTOTOP,Not applicable
13/03/17,20.00 ,Travel - Air/Rail/Road,PASSENGER RAILWAYS,HOUSING AND REGENERATION,OYSTER AUTOTOPUP,Not applicable
13/03/17,20.00 ,Travel - Air/Rail/Road,PASSENGER RAILWAYS,HOUSING AND REGENERATION,OYSTER AUTOTOPUP,Not applicable
13/03/17,20.00 ,Travel - Air/Rail/Road,PASSENGER RAILWAYS,HOUSING AND REGENERATION,OYSTER AUTOTOPUP,Not applicable
13/03/17,229.00 ,Hotels and Accommodation,TRAVELODGE,HOUSING AND REGENERATION,EMERGENCY ACCOMMODATION,Not applicable
16/03/17,20.00 ,Travel - Air/Rail/Road,PASSENGER RAILWAYS,HOUSING AND REGENERATION,OYSTER BUS AUTOTOP,Not applicable
17/03/17,20.00 ,Travel - Air/Rail/Road,PASSENGER RAILWAYS,HOUSING AND REGENERATION,OYSTER AUTOTOPUP,Not applicable
20/03/17,20.00 ,Travel - Air/Rail/Road,PASSENGER RAILWAYS,HOUSING AND REGENERATION,OYSTER BUS AUTOTOP,Not applicable
20/03/17,20.00 ,Travel - Air/Rail/Road,PASSENGER RAILWAYS,HOUSING AND REGENERATION,OYSTER AUTOTOPUP,Not applicable
20/03/17,20.00 ,Travel - Air/Rail/Road,PASSENGER RAILWAYS,HOUSING AND REGENERATION,OYSTER AUTOTOPUP,Not applicable
20/03/17,20.00 ,Travel - Air/Rail/Road,PASSENGER RAILWAYS,HOUSING AND REGENERATION,OYSTER AUTOTOPUP,Not applicable
20/03/17,371.00 ,Hotels and Accommodation,TRAVELODGE,HOUSING AND REGENERATION,EMERGENCY ACCOMMODATION,Not applicable
20/03/17,672.50 ,Hotels and Accommodation,PREMIER INN,HOUSING AND REGENERATION,PREMIER INN 44534170,Not applicable
20/03/17,191.90 ,Hotels and Accommodation,TRAVELODGE,HOUSING AND REGENERATION,EMERGENCY ACCOMMODATION,Not applicable
21/03/17,15.00 ,Travel - Air/Rail/Road,PASSENGER RAILWAYS,HOUSING AND REGENERATION,OYSTER ISSUE WEB,Not applicable
21/03/17,15.00 ,Travel - Air/Rail/Road,PASSENGER RAILWAYS,HOUSING AND REGENERATION,OYSTER ISSUE WEB,Not applicable
23/03/17,672.50 ,Hotels and Accommodation,PREMIER INN,HOUSING AND REGENERATION,PREMIER INN 44534170,Not applicable
23/03/17,201.40 ,Travel - Air/Rail/Road,PASSENGER RAILWAYS,HOUSING AND REGENERATION,TRAINLINE,Not applicable
23/03/17,20.00 ,Travel - Air/Rail/Road,PASSENGER RAILWAYS,HOUSING AND REGENERATION,OYSTER BUS AUTOTOP,Not applicable
23/03/17,20.00 ,Travel - Air/Rail/Road,PASSENGER RAILWAYS,HOUSING AND REGENERATION,OYSTER BUS AUTOTOP,Not applicable
23/03/17,-672.50 ,Hotels and Accommodation,PREMIER INN,HOUSING AND REGENERATION,PREMIER INN 44534170,Not applicable
24/03/17,20.00 ,Travel - Air/Rail/Road,PASSENGER RAILWAYS,HOUSING AND REGENERATION,OYSTER AUTOTOPUP,Not applicable
24/03/17,20.00 ,Travel - Air/Rail/Road,PASSENGER RAILWAYS,HOUSING AND REGENERATION,OYSTER BUS AUTOTOP,Not applicable
27/03/17,494.00 ,Hotels and Accommodation,PREMIER INN,HOUSING AND REGENERATION,PREMIER INN 44534170,Not applicable
27/03/17,20.00 ,Travel - Air/Rail/Road,PASSENGER RAILWAYS,HOUSING AND REGENERATION,OYSTER AUTOTOPUP,Not applicable
28/03/17,231.00 ,Hotels and Accommodation,PREMIER INN,HOUSING AND REGENERATION,PREMIER INN 44534170,Not applicable
28/03/17,71.50 ,Hotels and Accommodation,PREMIER INN,HOUSING AND REGENERATION,PREMIER INN 44534170,Not applicable
29/03/17,83.00 ,Hotels and Accommodation,PREMIER INN,HOUSING AND REGENERATION,PREMIER INN 44534170,Not applicable
30/03/17,107.00 ,Hotels and Accommodation,PREMIER INN,HOUSING AND REGENERATION,PREMIER INN 44534170,Not applicable
30/03/17,20.00 ,Travel - Air/Rail/Road,PASSENGER RAILWAYS,HOUSING AND REGENERATION,OYSTER AUTOTOPUP,Not applicable
30/03/17,20.00 ,Travel - Air/Rail/Road,PASSENGER RAILWAYS,HOUSING AND REGENERATION,OYSTER BUS AUTOTOP,Not applicable
31/03/17,20.00 ,Travel - Air/Rail/Road,PASSENGER RAILWAYS,HOUSING AND REGENERATION,OYSTER AUTOTOPUP,Not applicable
31/03/17,101.93 ,Estate and Garden Services,LAWN AND GARDEN SUPPLY STORES,HOUSING AND REGENERATION,PROGREEN WEED CONTROL,Not applicable
31/03/17,154.62 ,Estate and Garden Services,LAWN AND GARDEN SUPPLY STORES,HOUSING AND REGENERATION,PITCHCARE ONLINE,Not applicable
31/03/17,393.54 ,Estate and Garden Services,LAWN AND GARDEN SUPPLY STORES,HOUSING AND REGENERATION,AMENITYLANDSOLUTION,Not applicable
31/03/17,330.00 ,Estate and Garden Services,LAWN AND GARDEN SUPPLY STORES,HOUSING AND REGENERATION,NOMIX ENVIRO,Not applicable
09/01/17,20.00 ,Travel - Air/Rail/Road,PASSENGER RAILWAYS,RESOURCES,OYSTER AUTOTOPUP,Not applicable
09/01/17,20.00 ,Travel - Air/Rail/Road,PASSENGER RAILWAYS,RESOURCES,OYSTER AUTOTOPUP,Not applicable
09/01/17,20.00 ,Travel - Air/Rail/Road,PASSENGER RAILWAYS,RESOURCES,OYSTER AUTOTOPUP,Not applicable
13/01/17,20.00 ,Travel - Air/Rail/Road,PASSENGER RAILWAYS,RESOURCES,OYSTER AUTOTOPUP,Not applicable
16/01/17,20.00 ,Travel - Air/Rail/Road,PASSENGER RAILWAYS,RESOURCES,OYSTER AUTOTOPUP,Not applicable
16/01/17,20.00 ,Travel - Air/Rail/Road,PASSENGER RAILWAYS,RESOURCES,OYSTER AUTOTOPUP,Not applicable
18/01/17,8493.00 ,Statutory Bodies,FINES,RESOURCES,HMCOURTS-SERVICE.G,Not applicable
20/01/17,20.00 ,Travel - Air/Rail/Road,PASSENGER RAILWAYS,RESOURCES,OYSTER AUTOTOPUP,Not applicable
30/01/17,20.00 ,Travel - Air/Rail/Road,PASSENGER RAILWAYS,RESOURCES,OYSTER AUTOTOPUP,Not applicable
30/01/17,20.00 ,Travel - Air/Rail/Road,PASSENGER RAILWAYS,RESOURCES,OYSTER AUTOTOPUP,Not applicable
31/01/17,129.99 ,General Retail and Wholesale,ELECTRONIC SALES,RESOURCES,CURRYS ONLINE,Not applicable
02/02/17,558.00 ,Miscellaneous Industrial/Commercial Supplies,BUSINESS SERVICES-NOT ELSEWHERE CLASSIFIED,RESOURCES,REDACTIVE,Not applicable
03/02/17,20.00 ,Travel - Air/Rail/Road,PASSENGER RAILWAYS,RESOURCES,OYSTER BUS AUTOTOP,Not applicable
03/02/17,20.00 ,Travel - Air/Rail/Road,PASSENGER RAILWAYS,RESOURCES,OYSTER AUTOTOPUP,Not applicable
06/02/17,20.00 ,Travel - Air/Rail/Road,PASSENGER RAILWAYS,RESOURCES,OYSTER AUTOTOPUP,Not applicable
09/02/17,20.00 ,Travel - Air/Rail/Road,PASSENGER RAILWAYS,RESOURCES,OYSTER AUTOTOPUP,Not applicable
09/02/17,20.00 ,Travel - Air/Rail/Road,PASSENGER RAILWAYS,RESOURCES,OYSTER AUTOTOPUP,Not applicable
10/02/17,20.00 ,Travel - Air/Rail/Road,PASSENGER RAILWAYS,RESOURCES,OYSTER AUTOTOPUP,Not applicable
13/02/17,20.00 ,Travel - Air/Rail/Road,PASSENGER RAILWAYS,RESOURCES,OYSTER AUTOTOPUP,Not applicable
13/02/17,20.00 ,Travel - Air/Rail/Road,PASSENGER RAILWAYS,RESOURCES,OYSTER AUTOTOPUP,Not applicable
13/02/17,20.00 ,Travel - Air/Rail/Road,PASSENGER RAILWAYS,RESOURCES,OYSTER AUTOTOPUP,Not applicable
13/02/17,20.00 ,Travel - Air/Rail/Road,PASSENGER RAILWAYS,RESOURCES,OYSTER AUTOTOPUP,Not applicable
13/02/17,20.00 ,Travel - Air/Rail/Road,PASSENGER RAILWAYS,RESOURCES,OYSTER BUS AUTOTOP,Not applicable
13/02/17,20.00 ,Travel - Air/Rail/Road,PASSENGER RAILWAYS,RESOURCES,OYSTER AUTOTOPUP,Not applicable
14/02/17,199.00 ,Statutory Bodies,GOVERNMENT SERVICES-NOT ELSEWHERE CLASSIFIED,RESOURCES,Permission to work in the UK Cert from UK Border Agency,Not applicable
17/02/17,20.00 ,Travel - Air/Rail/Road,PASSENGER RAILWAYS,RESOURCES,OYSTER AUTOTOPUP,Not applicable
20/02/17,20.00 ,Travel - Air/Rail/Road,PASSENGER RAILWAYS,RESOURCES,OYSTER AUTOTOPUP,Not applicable
20/02/17,20.00 ,Travel - Air/Rail/Road,PASSENGER RAILWAYS,RESOURCES,OYSTER AUTOTOPUP,Not applicable
20/02/17,20.00 ,Travel - Air/Rail/Road,PASSENGER RAILWAYS,RESOURCES,OYSTER AUTOTOPUP,Not applicable
22/02/17,199.00 ,Statutory Bodies,GOVERNMENT SERVICES-NOT ELSEWHERE CLASSIFIED,RESOURCES,Permission to work in the UK Cert from UK Border Agency,Not applicable
27/02/17,20.00 ,Travel - Air/Rail/Road,PASSENGER RAILWAYS,RESOURCES,OYSTER AUTOTOPUP,Not applicable
27/02/17,20.00 ,Travel - Air/Rail/Road,PASSENGER RAILWAYS,RESOURCES,OYSTER AUTOTOPUP,Not applicable
01/03/17,1476.00 ,Statutory Bodies,GOVERNMENT SERVICES-NOT ELSEWHERE CLASSIFIED,RESOURCES,Permission to work in the UK Cert from UK Border Agency,Not applicable
03/03/17,20.00 ,Travel - Air/Rail/Road,PASSENGER RAILWAYS,RESOURCES,OYSTER AUTOTOPUP,Not applicable
03/03/17,20.00 ,Travel - Air/Rail/Road,PASSENGER RAILWAYS,RESOURCES,OYSTER AUTOTOPUP,Not applicable
03/03/17,20.00 ,Travel - Air/Rail/Road,PASSENGER RAILWAYS,RESOURCES,OYSTER AUTOTOPUP,Not applicable
06/03/17,20.00 ,Travel - Air/Rail/Road,PASSENGER RAILWAYS,RESOURCES,OYSTER AUTOTOPUP,Not applicable
09/03/17,20.00 ,Travel - Air/Rail/Road,PASSENGER RAILWAYS,RESOURCES,OYSTER AUTOTOPUP,Not applicable
13/03/17,20.00 ,Travel - Air/Rail/Road,PASSENGER RAILWAYS,RESOURCES,OYSTER AUTOTOPUP,Not applicable
13/03/17,20.00 ,Travel - Air/Rail/Road,PASSENGER RAILWAYS,RESOURCES,OYSTER AUTOTOPUP,Not applicable
13/03/17,20.00 ,Travel - Air/Rail/Road,PASSENGER RAILWAYS,RESOURCES,OYSTER AUTOTOPUP,Not applicable
15/03/17,199.00 ,Statutory Bodies,GOVERNMENT SERVICES-NOT ELSEWHERE CLASSIFIED,RESOURCES,Permission to work in the UK Cert from UK Border Agency,Not applicable
16/03/17,20.00 ,Travel - Air/Rail/Road,PASSENGER RAILWAYS,RESOURCES,OYSTER BUS AUTOTOP,Not applicable
17/03/17,7389.00 ,Statutory Bodies,FINES,RESOURCES,HMCOURTS-SERVICE.G,Not applicable
17/03/17,3660.00 ,Statutory Bodies,FINES,RESOURCES,HMCOURTS-SERVICE.G,Not applicable
17/03/17,20.00 ,Travel - Air/Rail/Road,PASSENGER RAILWAYS,RESOURCES,OYSTER AUTOTOPUP,Not applicable
17/03/17,20.00 ,Travel - Air/Rail/Road,PASSENGER RAILWAYS,RESOURCES,OYSTER AUTOTOPUP,Not applicable
20/03/17,20.00 ,Travel - Air/Rail/Road,PASSENGER RAILWAYS,RESOURCES,OYSTER BUS AUTOTOP,Not applicable
20/03/17,20.00 ,Travel - Air/Rail/Road,PASSENGER RAILWAYS,RESOURCES,OYSTER AUTOTOPUP,Not applicable
20/03/17,20.00 ,Travel - Air/Rail/Road,PASSENGER RAILWAYS,RESOURCES,OYSTER AUTOTOPUP,Not applicable
20/03/17,20.00 ,Travel - Air/Rail/Road,PASSENGER RAILWAYS,RESOURCES,OYSTER AUTOTOPUP,Not applicable
20/03/17,20.00 ,Travel - Air/Rail/Road,PASSENGER RAILWAYS,RESOURCES,OYSTER AUTOTOPUP,Not applicable
24/03/17,20.00 ,Travel - Air/Rail/Road,PASSENGER RAILWAYS,RESOURCES,OYSTER AUTOTOPUP,Not applicable
29/03/17,199.00 ,Statutory Bodies,GOVERNMENT SERVICES-NOT ELSEWHERE CLASSIFIED,RESOURCES,Permission to work in the UK Cert from UK Border Agency,Not applicable
09/01/17,12.34 ,General Retail and Wholesale,MISCELLANEOUS AND SPECIALTY RETAIL STORES,BRADSTOW SCHOOL,AMAZON UK RETAIL AMAZO,Not applicable
09/01/17,12.34 ,Mail Order / Direct Selling,DIRECT MARKETING-OTHER DIRECT MARKETERS/NOT ELSEW.,BRADSTOW SCHOOL,AMAZON EU,Not applicable
09/01/17,39.99 ,Books and Periodicals,BOOK STORES,BRADSTOW SCHOOL,AMAZON UK MARKETPLACE,Not applicable
09/01/17,34.99 ,General Retail and Wholesale,MISCELLANEOUS AND SPECIALTY RETAIL STORES,BRADSTOW SCHOOL,AMAZON UK RETAIL AMAZO,Not applicable
09/01/17,38.95 ,Mail Order / Direct Selling,DIRECT MARKETING-OTHER DIRECT MARKETERS/NOT ELSEW.,BRADSTOW SCHOOL,AMAZON EU,Not applicable
09/01/17,18.96 ,Books and Periodicals,BOOK STORES,BRADSTOW SCHOOL,AMAZON UK MARKETPLACE,Not applicable
09/01/17,18.50 ,Books and Periodicals,BOOK STORES,BRADSTOW SCHOOL,AMAZON UK MARKETPLACE,Not applicable
09/01/17,3.49 ,Books and Periodicals,BOOK STORES,BRADSTOW SCHOOL,AMAZON UK MARKETPLACE,Not applicable
09/01/17,11.99 ,Books and Periodicals,BOOK STORES,BRADSTOW SCHOOL,AMAZON UK MARKETPLACE,Not applicable
09/01/17,25.60 ,Books and Periodicals,BOOK STORES,BRADSTOW SCHOOL,AMAZON UK MARKETPLACE,Not applicable
09/01/17,3.56 ,Books and Periodicals,BOOK STORES,BRADSTOW SCHOOL,"AMAZON SVCS EUROPE,SAR",Not applicable
09/01/17,17.19 ,Books and Periodicals,BOOK STORES,BRADSTOW SCHOOL,AMAZON UK MARKETPLACE,Not applicable
09/01/17,77.36 ,Books and Periodicals,BOOK STORES,BRADSTOW SCHOOL,AMAZON UK MARKETPLACE,Not applicable
10/01/17,14.98 ,Books and Periodicals,BOOK STORES,BRADSTOW SCHOOL,AMAZON UK MARKETPLACE,Not applicable
10/01/17,16.68 ,General Retail and Wholesale,MISCELLANEOUS AND SPECIALTY RETAIL STORES,BRADSTOW SCHOOL,AMAZON UK RETAIL AMAZO,Not applicable
10/01/17,119.99 ,General Retail and Wholesale,ELECTRONIC SALES,BRADSTOW SCHOOL,CURRYS ONLINE,Not applicable
13/01/17,77.03 ,Books and Periodicals,BOOK STORES,BRADSTOW SCHOOL,AMAZON UK MARKETPLACE,Not applicable
16/01/17,6.99 ,Books and Periodicals,BOOK STORES,BRADSTOW SCHOOL,AMAZON UK MARKETPLACE,Not applicable
16/01/17,76.97 ,General Retail and Wholesale,MISCELLANEOUS AND SPECIALTY RETAIL STORES,BRADSTOW SCHOOL,AMAZON UK RETAIL AMAZO,Not applicable
16/01/17,14.59 ,Books and Periodicals,BOOK STORES,BRADSTOW SCHOOL,AMAZON UK MARKETPLACE,Not applicable
16/01/17,14.99 ,Books and Periodicals,BOOK STORES,BRADSTOW SCHOOL,AMAZON UK MARKETPLACE,Not applicable
16/01/17,49.93 ,Mail Order / Direct Selling,DIRECT MARKETING-OTHER DIRECT MARKETERS/NOT ELSEW.,BRADSTOW SCHOOL,AMAZON EU,Not applicable
17/01/17,14.99 ,Books and Periodicals,BOOK STORES,BRADSTOW SCHOOL,AMAZON UK MARKETPLACE,Not applicable
17/01/17,24.48 ,Books and Periodicals,BOOK STORES,BRADSTOW SCHOOL,AMAZON UK MARKETPLACE,Not applicable
19/01/17,230.21 ,Travel - Air/Rail/Road,PASSENGER RAILWAYS,BRADSTOW SCHOOL,TRAINLINE,Not applicable
20/01/17,238.28 ,Building Materials,"BUILDING MATERIALS, LUMBER STORES",BRADSTOW SCHOOL,TRADE UK,Not applicable
23/01/17,279.93 ,General Retail and Wholesale,TENT AND AWNING SHOPS,BRADSTOW SCHOOL,WWW.CAMPING-INTL.C,Not applicable
23/01/17,413.70 ,"Vehicles, Servicing and Spares","AUTOMOTIVE PARTS, ACCESSORIES STORES",BRADSTOW SCHOOL,SDENTERPRISES,Not applicable
25/01/17,235.01 ,Travel - Air/Rail/Road,PASSENGER RAILWAYS,BRADSTOW SCHOOL,TRAINLINE,Not applicable
26/01/17,18.95 ,Books and Periodicals,BOOK STORES,BRADSTOW SCHOOL,AMAZON UK MARKETPLACE,Not applicable
27/01/17,39.92 ,Books and Periodicals,BOOK STORES,BRADSTOW SCHOOL,AMAZON UK MARKETPLACE,Not applicable
30/01/17,42.26 ,Books and Periodicals,BOOK STORES,BRADSTOW SCHOOL,AMAZON UK MARKETPLACE,Not applicable
30/01/17,37.38 ,Books and Periodicals,BOOK STORES,BRADSTOW SCHOOL,AMAZON UK MARKETPLACE,Not applicable
30/01/17,44.72 ,Books and Periodicals,BOOK STORES,BRADSTOW SCHOOL,AMAZON UK MARKETPLACE,Not applicable
30/01/17,63.92 ,Books and Periodicals,BOOK STORES,BRADSTOW SCHOOL,"AMAZON SVCS EUROPE,SAR",Not applicable
31/01/17,6.95 ,Mail Order / Direct Selling,DIRECT MARKETING-OTHER DIRECT MARKETERS/NOT ELSEW.,BRADSTOW SCHOOL,AMAZON EU,Not applicable
31/01/17,9.57 ,Books and Periodicals,BOOK STORES,BRADSTOW SCHOOL,AMAZON UK MARKETPLACE,Not applicable
02/02/17,41.28 ,"Office Stationery, Equipment and Supplies",STATIONERY/OFFICE SUPPLIES/PRINTING & WRITING PAP.,BRADSTOW SCHOOL,WWW.VINYLLETTERINGONLI,Not applicable
03/02/17,35.94 ,General Retail and Wholesale,MISCELLANEOUS AND SPECIALTY RETAIL STORES,BRADSTOW SCHOOL,AMAZON UK RETAIL AMAZO,Not applicable
05/01/17,107.86 ,General Retail and Wholesale,"GROCERY STORES, SUPERMARKETS",BRANDLEHOW SCHOOL,TESCO STORES 5999,Not applicable
10/01/17,133.45 ,General Retail and Wholesale,"GROCERY STORES, SUPERMARKETS",BRANDLEHOW SCHOOL,TESCO STORES 5999,Not applicable
11/01/17,42.38 ,General Retail and Wholesale,MISCELLANEOUS HOUSE FURNISHING SPECIALTY SHOPS,BRANDLEHOW SCHOOL,NET CURTAINS DIRECT,Not applicable
16/01/17,54.90 ,Books and Periodicals,BOOK STORES,BRANDLEHOW SCHOOL,AMAZON UK MARKETPLACE,Not applicable
16/01/17,3.95 ,Books and Periodicals,BOOK STORES,BRANDLEHOW SCHOOL,AMAZON UK MARKETPLACE,Not applicable
16/01/17,16.48 ,Mail Order / Direct Selling,DIRECT MARKETING-OTHER DIRECT MARKETERS/NOT ELSEW.,BRANDLEHOW SCHOOL,AMAZON EU,Not applicable
17/01/17,107.62 ,General Retail and Wholesale,"GROCERY STORES, SUPERMARKETS",BRANDLEHOW SCHOOL,TESCO STORES 5999,Not applicable
23/01/17,46.80 ,General Retail and Wholesale,MISCELLANEOUS AND SPECIALTY RETAIL STORES,BRANDLEHOW SCHOOL,WWW.YOUTHSPORTDIRECT.O,Not applicable
24/01/17,199.12 ,General Retail and Wholesale,"GROCERY STORES, SUPERMARKETS",BRANDLEHOW SCHOOL,TESCO STORES 5999,Not applicable
31/01/17,130.73 ,General Retail and Wholesale,"GROCERY STORES, SUPERMARKETS",BRANDLEHOW SCHOOL,TESCO STORES 5999,Not applicable
07/02/17,106.31 ,General Retail and Wholesale,"GROCERY STORES, SUPERMARKETS",BRANDLEHOW SCHOOL,TESCO STORES 5999,Not applicable
09/02/17,38.16 ,Books and Periodicals,BOOK STORES,BRANDLEHOW SCHOOL,AMAZON UK MARKETPLACE,Not applicable
22/02/17,175.88 ,General Retail and Wholesale,"GROCERY STORES, SUPERMARKETS",BRANDLEHOW SCHOOL,TESCO STORES 5999,Not applicable
27/02/17,114.62 ,Books and Periodicals,BOOK STORES,BRANDLEHOW SCHOOL,AMAZON UK MARKETPLACE,Not applicable
28/02/17,160.18 ,General Retail and Wholesale,"GROCERY STORES, SUPERMARKETS",BRANDLEHOW SCHOOL,TESCO STORES 5999,Not applicable
03/03/17,14.94 ,Books and Periodicals,BOOK STORES,BRANDLEHOW SCHOOL,AMAZON UK MARKETPLACE,Not applicable
07/03/17,154.19 ,General Retail and Wholesale,"GROCERY STORES, SUPERMARKETS",BRANDLEHOW SCHOOL,TESCO STORES 5999,Not applicable
10/03/17,54.90 ,Books and Periodicals,BOOK STORES,BRANDLEHOW SCHOOL,AMAZON UK MARKETPLACE,Not applicable
14/03/17,166.98 ,General Retail and Wholesale,"GROCERY STORES, SUPERMARKETS",BRANDLEHOW SCHOOL,TESCO STORES 5999,Not applicable
06/01/17,152.68 ,General Retail and Wholesale,MISCELLANEOUS AND SPECIALTY RETAIL STORES,RONALD ROSS SCHOOL,AMAZON UK RETAIL AMAZO,Not applicable
09/01/17,230.00 ,General Retail and Wholesale,"GAME, TOY, AND HOBBY SHOPS",RONALD ROSS SCHOOL,WWW.THETOYSHOP.COM,Not applicable
09/01/17,330.57 ,General Retail and Wholesale,"GAME, TOY, AND HOBBY SHOPS",RONALD ROSS SCHOOL,WWW.THETOYSHOP.COM,Not applicable
30/01/17,8.25 ,Books and Periodicals,BOOK STORES,RONALD ROSS SCHOOL,AMAZON UK MARKETPLACE,Not applicable
30/01/17,19.49 ,General Retail and Wholesale,MISCELLANEOUS AND SPECIALTY RETAIL STORES,RONALD ROSS SCHOOL,AMAZON UK RETAIL AMAZO,Not applicable
02/02/17,92.95 ,Books and Periodicals,BOOK STORES,RONALD ROSS SCHOOL,AMAZON UK MARKETPLACE,Not applicable
03/02/17,14.15 ,Books and Periodicals,BOOK STORES,RONALD ROSS SCHOOL,AMAZON UK MARKETPLACE,Not applicable
08/02/17,36.98 ,General Retail and Wholesale,MISCELLANEOUS AND SPECIALTY RETAIL STORES,RONALD ROSS SCHOOL,AMAZON UK MARKETPLACE,Not applicable
10/02/17,292.38 ,Print and Advertising,ADVERTISING SERVICES,RONALD ROSS SCHOOL,PP SIGNSDIRECT,Not applicable
16/03/17,32.03 ,Books and Periodicals,BOOK STORES,RONALD ROSS SCHOOL,AMAZON UK MARKETPLACE,Not applicable
20/03/17,27.99 ,Books and Periodicals,BOOK STORES,RONALD ROSS SCHOOL,AMAZON UK MARKETPLACE,Not applicable
05/01/17,36.97 ,Building Materials,"BUILDING MATERIALS, LUMBER STORES",CHRISTCHURCH SCHOOL,TRADE UK,Not applicable
05/01/17,329.00 ,General Retail and Wholesale,DEPARTMENT STORES,HOLY GHOST SCHOOL,WWW.JOHNLEWIS.COM,Not applicable
06/01/17,85.52 ,General Retail and Wholesale,"GROCERY STORES, SUPERMARKETS",CHRISTCHURCH SCHOOL,TESCO STORES 5999,Not applicable
06/01/17,12.74 ,Books and Periodicals,BOOK STORES,HOLY GHOST SCHOOL,AMAZON UK MARKETPLACE,Not applicable
06/01/17,8.04 ,Books and Periodicals,BOOK STORES,HOLY GHOST SCHOOL,AMAZON UK MARKETPLACE,Not applicable
11/01/17,69.80 ,General Retail and Wholesale,MISCELLANEOUS GENERAL MERCHANDISE,HOLY GHOST SCHOOL,LAKELAND.LIMITED,Not applicable
12/01/17,26.70 ,Professional Services,"CONSULTING, MANAGEMENT, AND PUBLIC RELATIONS SVCS",CHRISTCHURCH SCHOOL,PAYPAL  IMPACTCREAT,Not applicable
13/01/17,80.07 ,Travel - Air/Rail/Road,PASSENGER RAILWAYS,CHRISTCHURCH SCHOOL,TRAINLINE,Not applicable
16/01/17,20.00 ,Travel - Air/Rail/Road,PASSENGER RAILWAYS,CHRISTCHURCH SCHOOL,OYSTER BUS AUTOTOP,Not applicable
19/01/17,31.00 ,Books and Periodicals,BOOK STORES,HOLY GHOST SCHOOL,FOCUS EDUCATION UK LTD,Not applicable
24/01/17,109.23 ,General Retail and Wholesale,"GROCERY STORES, SUPERMARKETS",CHRISTCHURCH SCHOOL,TESCO STORES 5999,Not applicable
24/01/17,469.00 ,General Retail and Wholesale,DEPARTMENT STORES,HOLY GHOST SCHOOL,WWW.JOHNLEWIS.COM,Not applicable
25/01/17,91.35 ,Books and Periodicals,BOOK STORES,HOLY GHOST SCHOOL,PAYPAL  CREATIVEEDU,Not applicable
26/01/17,10.71 ,General Retail and Wholesale,MISCELLANEOUS AND SPECIALTY RETAIL STORES,CHRISTCHURCH SCHOOL,AMAZON UK RETAIL AMAZO,Not applicable
26/01/17,20.00 ,Travel - Air/Rail/Road,PASSENGER RAILWAYS,CHRISTCHURCH SCHOOL,OYSTER AUTOSETTLE,Not applicable
26/01/17,20.00 ,Travel - Air/Rail/Road,PASSENGER RAILWAYS,CHRISTCHURCH SCHOOL,OYSTER AUTOSETTLE,Not applicable
26/01/17,95.75 ,General Retail and Wholesale,MISCELLANEOUS AND SPECIALTY RETAIL STORES,CHRISTCHURCH SCHOOL,AMAZON UK RETAIL AMAZO,Not applicable
27/01/17,65.98 ,Mail Order / Direct Selling,DIRECT MARKETING-OTHER DIRECT MARKETERS/NOT ELSEW.,HOLY GHOST SCHOOL,AMAZON EU,Not applicable
27/01/17,27.77 ,Books and Periodicals,BOOK STORES,HOLY GHOST SCHOOL,"AMAZON SVCS EUROPE,SAR",Not applicable
27/01/17,8.78 ,Books and Periodicals,BOOK STORES,HOLY GHOST SCHOOL,AMAZON UK MARKETPLACE,Not applicable
30/01/17,246.85 ,General Retail and Wholesale,"FIREPLACE, FIREPLACE SCREENS & ACCESSORIES STORES",CHRISTCHURCH SCHOOL,COMPOST DIR,Not applicable
30/01/17,256.90 ,General Retail and Wholesale,"FIREPLACE, FIREPLACE SCREENS & ACCESSORIES STORES",CHRISTCHURCH SCHOOL,COMPOST DIR,Not applicable
01/02/17,17.08 ,Mail Order / Direct Selling,DIRECT MARKETING-OTHER DIRECT MARKETERS/NOT ELSEW.,CHRISTCHURCH SCHOOL,AMAZON EU,Not applicable
01/02/17,17.08 ,Mail Order / Direct Selling,DIRECT MARKETING-OTHER DIRECT MARKETERS/NOT ELSEW.,CHRISTCHURCH SCHOOL,AMAZON EU,Not applicable
01/02/17,84.83 ,General Retail and Wholesale,MISCELLANEOUS AND SPECIALTY RETAIL STORES,HOLY GHOST SCHOOL,AMAZON UK RETAIL AMAZO,Not applicable
01/02/17,68.80 ,General Retail and Wholesale,"GROCERY STORES, SUPERMARKETS",HOLY GHOST SCHOOL,ASDA HOME SHOPPING,Not applicable
01/02/17,18.86 ,General Retail and Wholesale,MISCELLANEOUS AND SPECIALTY RETAIL STORES,HOLY GHOST SCHOOL,AMAZON UK RETAIL AMAZO,Not applicable
01/02/17,37.70 ,General Retail and Wholesale,MISCELLANEOUS AND SPECIALTY RETAIL STORES,HOLY GHOST SCHOOL,AMAZON UK RETAIL AMAZO,Not applicable
02/02/17,7.99 ,General Retail and Wholesale,MISCELLANEOUS AND SPECIALTY RETAIL STORES,CHRISTCHURCH SCHOOL,AMAZON UK RETAIL AMAZO,Not applicable
02/02/17,49.06 ,General Retail and Wholesale,MISCELLANEOUS AND SPECIALTY RETAIL STORES,CHRISTCHURCH SCHOOL,AMAZON UK RETAIL AMAZO,Not applicable
03/02/17,16.00 ,Books and Periodicals,BOOK STORES,HOLY GHOST SCHOOL,AMAZON UK MARKETPLACE,Not applicable
06/02/17,14.98 ,Books and Periodicals,BOOK STORES,HOLY GHOST SCHOOL,AMAZON UK MARKETPLACE,Not applicable
07/02/17,38.18 ,Books and Periodicals,BOOK STORES,HOLY GHOST SCHOOL,AMAZON UK MARKETPLACE,Not applicable
10/02/17,402.00 ,Miscellaneous Industrial/Commercial Supplies,BUSINESS SERVICES-NOT ELSEWHERE CLASSIFIED,CHRISTCHURCH SCHOOL,DIRECT STORAGE LIMITED,Not applicable
13/02/17,20.00 ,Travel - Air/Rail/Road,PASSENGER RAILWAYS,CHRISTCHURCH SCHOOL,OYSTER BUS AUTOTOP,Not applicable
21/02/17,139.36 ,General Retail and Wholesale,"GROCERY STORES, SUPERMARKETS",CHRISTCHURCH SCHOOL,TESCO STORES 5999,Not applicable
21/02/17,115.19 ,Miscellaneous Industrial/Commercial Supplies,BUSINESS SERVICES-NOT ELSEWHERE CLASSIFIED,HOLY GHOST SCHOOL,WWW.FRONTLINE-SAFETY.C,Not applicable
22/02/17,56.30 ,Travel - Air/Rail/Road,PASSENGER RAILWAYS,CHRISTCHURCH SCHOOL,TRAINLINE,Not applicable
22/02/17,-3.25 ,General Retail and Wholesale,"GROCERY STORES, SUPERMARKETS",CHRISTCHURCH SCHOOL,TESCO STORE 3539,Not applicable
22/02/17,106.70 ,General Retail and Wholesale,"GROCERY STORES, SUPERMARKETS",HOLY GHOST SCHOOL,ASDA HOME SHOPPING,Not applicable
22/02/17,-12.00 ,General Retail and Wholesale,"GROCERY STORES, SUPERMARKETS",HOLY GHOST SCHOOL,ASDA HOME SHOPPING,Not applicable
23/02/17,102.99 ,General Retail and Wholesale,MISCELLANEOUS AND SPECIALTY RETAIL STORES,CHRISTCHURCH SCHOOL,AMAZON UK RETAIL AMAZO,Not applicable
23/02/17,178.28 ,Books and Periodicals,BOOK STORES,HOLY GHOST SCHOOL,AMAZON UK MARKETPLACE,Not applicable
23/02/17,14.98 ,General Retail and Wholesale,MISCELLANEOUS AND SPECIALTY RETAIL STORES,HOLY GHOST SCHOOL,AMAZON UK RETAIL AMAZO,Not applicable
23/02/17,13.14 ,General Retail and Wholesale,MISCELLANEOUS AND SPECIALTY RETAIL STORES,HOLY GHOST SCHOOL,AMAZON UK RETAIL AMAZO,Not applicable
27/02/17,56.95 ,Building Materials,"BUILDING MATERIALS, LUMBER STORES",CHRISTCHURCH SCHOOL,TRADE UK,Not applicable
27/02/17,20.00 ,Travel - Air/Rail/Road,PASSENGER RAILWAYS,CHRISTCHURCH SCHOOL,OYSTER BUS AUTOTOP,Not applicable
28/02/17,2.81 ,Books and Periodicals,BOOK STORES,HOLY GHOST SCHOOL,AMAZON UK MARKETPLACE,Not applicable
01/03/17,36.00 ,General Retail and Wholesale,"GROCERY STORES, SUPERMARKETS",CHRISTCHURCH SCHOOL,TESCO DELIVERY SAVER1,Not applicable
01/03/17,2.81 ,Books and Periodicals,BOOK STORES,HOLY GHOST SCHOOL,AMAZON UK MARKETPLACE,Not applicable
02/03/17,9.79 ,Books and Periodicals,BOOK STORES,HOLY GHOST SCHOOL,AMAZON UK MARKETPLACE,Not applicable
03/03/17,-2.00 ,General Retail and Wholesale,"GROCERY STORES, SUPERMARKETS",HOLY GHOST SCHOOL,ASDA HOME SHOPPING,Not applicable
03/03/17,-36.00 ,General Retail and Wholesale,"GROCERY STORES, SUPERMARKETS",HOLY GHOST SCHOOL,ASDA HOME SHOPPING,Not applicable
03/03/17,50.70 ,General Retail and Wholesale,"GROCERY STORES, SUPERMARKETS",HOLY GHOST SCHOOL,ASDA HOME SHOPPING,Not applicable
07/03/17,2.99 ,Books and Periodicals,BOOK STORES,HOLY GHOST SCHOOL,SKR ABEBOOKS.UK 3VKZRZ,Not applicable
08/03/17,50.84 ,General Retail and Wholesale,"GROCERY STORES, SUPERMARKETS",CHRISTCHURCH SCHOOL,TESCO STORES 5999,Not applicable
08/03/17,32.76 ,General Retail and Wholesale,MISCELLANEOUS AND SPECIALTY RETAIL STORES,HOLY GHOST SCHOOL,FIRSTAID4LESS.CO.UK,Not applicable
10/03/17,9.98 ,General Retail and Wholesale,MISCELLANEOUS AND SPECIALTY RETAIL STORES,HOLY GHOST SCHOOL,AMAZON UK RETAIL AMAZO,Not applicable
16/03/17,20.00 ,Travel - Air/Rail/Road,PASSENGER RAILWAYS,CHRISTCHURCH SCHOOL,OYSTER BUS AUTOTOP,Not applicable
20/03/17,40.00 ,Travel - Air/Rail/Road,PASSENGER RAILWAYS,CHRISTCHURCH SCHOOL,OYSTER BUS AUTOTOP,Not applicable
22/03/17,42.03 ,General Retail and Wholesale,"GROCERY STORES, SUPERMARKETS",CHRISTCHURCH SCHOOL,TESCO STORES 5999,Not applicable
10/01/17,19.98 ,Books and Periodicals,BOOK STORES,SHERINGDALE SCHOOL,AMAZON UK MARKETPLACE,Not applicable
11/01/17,30.00 ,Clubs/Associations/Organisations,"ORGANIZATIONS, CHARITABLE AND SOCIAL SERVICES",SHERINGDALE SCHOOL,NSPCC.CSOD.COM,Not applicable
23/01/17,10.02 ,Books and Periodicals,BOOK STORES,SHERINGDALE SCHOOL,AMAZON UK MARKETPLACE,Not applicable
24/01/17,2.07 ,Books and Periodicals,BOOK STORES,SHERINGDALE SCHOOL,AMAZON UK MARKETPLACE,Not applicable
08/02/17,50.00 ,Travel - Air/Rail/Road,PASSENGER RAILWAYS,SHERINGDALE SCHOOL,OYSTER RENEW WEB,Not applicable
22/02/17,50.00 ,Travel - Air/Rail/Road,PASSENGER RAILWAYS,SHERINGDALE SCHOOL,OYSTER RENEW WEB,Not applicable
23/02/17,-50.00 ,Travel - Air/Rail/Road,PASSENGER RAILWAYS,SHERINGDALE SCHOOL,OYSTER RENEW WEB,Not applicable
01/03/17,47.25 ,General Retail and Wholesale,"GROCERY STORES, SUPERMARKETS",SHERINGDALE SCHOOL,SAINSBURYS (0069),Not applicable
01/03/17,179.35 ,Books and Periodicals,BOOK STORES,SHERINGDALE SCHOOL,AMAZON UK MARKETPLACE,Not applicable
08/03/17,2.75 ,Books and Periodicals,BOOK STORES,SHERINGDALE SCHOOL,AMAZON UK MARKETPLACE,Not applicable
08/03/17,3.82 ,Books and Periodicals,BOOK STORES,SHERINGDALE SCHOOL,AMAZON UK MARKETPLACE,Not applicable
10/03/17,8.98 ,Mail Order / Direct Selling,DIRECT MARKETING-OTHER DIRECT MARKETERS/NOT ELSEW.,SHERINGDALE SCHOOL,AMAZON EU,Not applicable
29/03/17,66.00 ,Restaurants and Bars,FAST FOOD RESTAURANTS,SHERINGDALE SCHOOL,PAPA JOHN'S PIZZA,Not applicable
06/01/17,95.39 ,General Retail and Wholesale,DISCOUNT STORES,ST MICHAEL'S SCHOOL,ARGOS RETAIL GROUP,Not applicable
16/01/17,68.00 ,General Retail and Wholesale,ELECTRONIC SALES,ST MICHAEL'S SCHOOL,APPLE ONLINE STORE GBP,Not applicable
06/02/17,115.16 ,Mail Order / Direct Selling,DIRECT MARKETING-OTHER DIRECT MARKETERS/NOT ELSEW.,ST MICHAEL'S SCHOOL,AMAZON EU,Not applicable
10/02/17,70.00 ,General Retail and Wholesale,DEPARTMENT STORES,ST MICHAEL'S SCHOOL,WWW.JOHNLEWIS.COM,Not applicable
14/02/17,13.60 ,Books and Periodicals,BOOK STORES,ST MICHAEL'S SCHOOL,AMAZON UK MARKETPLACE,Not applicable
14/02/17,3.59 ,Books and Periodicals,BOOK STORES,ST MICHAEL'S SCHOOL,AMAZON UK MARKETPLACE,Not applicable
16/02/17,231.78 ,Books and Periodicals,BOOK STORES,ST MICHAEL'S SCHOOL,AMAZON UK MARKETPLACE,Not applicable
06/03/17,239.67 ,Books and Periodicals,BOOK STORES,ST MICHAEL'S SCHOOL,AMAZON UK MARKETPLACE,Not applicable
06/03/17,23.00 ,Books and Periodicals,BOOK STORES,ST MICHAEL'S SCHOOL,AMAZON UK MARKETPLACE,Not applicable
06/03/17,76.48 ,General Retail and Wholesale,DISCOUNT STORES,ST MICHAEL'S SCHOOL,WWW.ARGOS.CO.UK,Not applicable
07/03/17,13.98 ,General Retail and Wholesale,MISCELLANEOUS AND SPECIALTY RETAIL STORES,ST MICHAEL'S SCHOOL,AMAZON UK RETAIL AMAZO,Not applicable
07/03/17,52.44 ,General Retail and Wholesale,MISCELLANEOUS AND SPECIALTY RETAIL STORES,ST MICHAEL'S SCHOOL,AMAZON.CO.UK,Not applicable
07/03/17,52.58 ,Books and Periodicals,BOOK STORES,ST MICHAEL'S SCHOOL,AMAZON UK MARKETPLACE,Not applicable
08/03/17,502.50 ,Leisure Activities,"ASSOCIATIONS-CIVIC, SOCIAL, AND FRATERNAL",ST MICHAEL'S SCHOOL,TENNIS FOUNDATION,Not applicable
